Cogmind - Beta 16 @@@ ROGUE MODE // 2025.11.13 @ 19:59:22 Player: C0-2MO Result: Destroyed by X-87 Electro with Compact HERF Cannon Performance ------------- Evolutions (9) 4500 Regions Visited (24) 4800 Robots Destroyed (216) 1080 Value Destroyed (12658) 12658 Prototype IDs (163) 3260 Alien Tech Used (5) 1000 Bonus (44785) 44785 TOTAL SCORE: 72083 Bonus ------- High Alert Combat Kills 6954 Follower Combat Kills 708 Network Hubs Disabled 600 Registered with UFD 300 Met Optimus in HQ 500 Met Zhirov 300 Destroyed Superfortress 15000 Met Optimus at Protoforge 1000 Executed Drillbomb Mission 10000 Met MAIN.C 5000 Destroyed MAIN.C Shell 5000 Friendly Fire -577 Cogmind --------- Core Integrity 0/1600 Matter 300/300 Energy 99/100 System Corruption 16% Temperature Cool (0) Movement Flying (32) Location -1/Command Parts ------- > --- POWER (2) -------- (None) > --- PROPULSION (9) --- Experimental Biomechanical Wings Experimental Biomechanical Wings > --- UTILITY (12) ----- Spectral Analyzer > --- WEAPON (2) ------- (None) > --- INVENTORY (5) ---- Concept Zero-point Core Concept Zero-point Core Concept Cloak Mesh Transdimensional Reconstructor Mini Smartbomb Launcher Peak State ------------ > --- POWER ------------ Micro Antimatter Reactor Concept Zero-point Core > --- PROPULSION ------- Impulse Thruster Array Impulse Thruster Array Impulse Thruster Array Experimental Biomechanical Wings Experimental Biomechanical Wings Experimental Biomechanical Wings > --- UTILITY ---------- Concept Antigrav Storage Unit Spectral Analyzer Experimental Active Sensor Suite Concept Core Analysis Suite Improved Particle Charger Experimental ECM Suite Experimental Reaction Control System Concept Cloak Mesh Concept Cloak Mesh Concept RG22 Armor Graphene Brace > --- WEAPON ----------- Concept Plasma Driver > --- INVENTORY -------- Concept Zero-point Core Concept Zero-point Core Concept Zero-point Core Nuclear Pulse Array Q-thruster Concept Fieldthrust Drive Concept NT7 Matterbank Advanced Gravity Neutralizer Concept Weapon Articulator Femtoactuators Stasis Canceller Experimental Reaction Control System Experimental Cloaking Device Improved Power Shielding Experimental Utility Shielding Experimental EM Shield Crosscalibrator Concept Impact Drone Bay Concept Impact Drone Bay Transdimensional Reconstructor Mini Smartbomb Launcher Concept Deflector Sword Experimental Jetlance Experimental Jetlance [Rating: 260] Favorites ----------- Power Micro Fission Core Engine Light Angular Momentum Engine Power Core Micro Fission Core Reactor Micro Antimatter Reactor Propulsion Field Propulsion Array Treads Light Treads Wheel Compact Wheel Flight Unit Field Propulsion Array Utility Large Storage Unit Device Experimental Active Sensor Suite Storage Large Storage Unit Processor Spectral Analyzer Hackware Advanced Hacking Suite Protection Medium Regenerative Plating Weapon Subdweller Beam Cannon Energy Gun Medium Laser Energy Cannon Subdweller Beam Cannon Ballistic Gun Assault Rifle Ballistic Cannon Concept Miniperforator Launcher Mini Smartbomb Launcher Special Weapon Mining Laser Impact Weapon Impact Mace Slashing Weapon Greatsword Piercing Weapon Experimental Jetlance Build | -11 -10 -10 -7 -7 -5 -5 -5 -5 -5 -5 -4 -4 -4 -4 -4 -4 -4 -4 -3 -3 -3 -2 -1 -1 ------- Run | Yrd Mat Sub Rec Scr Fac Was Fac Upp Upp Zhi Pro Fac Was Fac Ext Cet Arc Hub Res Qua Frg Res Acc Com Slots Evolved 18 | . . . . . 10 . . . . . . 2 . . . . . . 2 . . 2 2 . Power 1 | . . . . . . . . . . . . 1 . . . . . . . . . . . . Propulsion 7 | . . . . . 5 . . . . . . . . . . . . . 1 . . . 1 . Utility 10 | . . . . . 5 . . . . . . 1 . . . . . . 1 . . 2 1 . Weapon . | . . . . . . . . . . . . . . . . . . . . . . . . . Parts Attached 185 | 7 3 7 . 9 19 . 15 1 . 2 1 13 . 11 3 5 1 1 3 5 67 2 1 9 Power 17 | 1 . 1 . 1 1 . 1 . . . . 1 . 2 . 1 . . . 2 6 . . . Engine 4 | 1 . 1 . 1 . . . . . . . . . . . . . . . . 1 . . . Core 5 | . . . . . 1 . 1 . . . . . . 1 . . . . . . 2 . . . Reactor 8 | . . . . . . . . . . . . 1 . 1 . 1 . . . 2 3 . . . Propulsion 40 | 2 1 3 . 3 6 . 1 . . . 1 3 . 1 . . . . 1 1 13 . 1 3 Treads 1 | 1 . . . . . . . . . . . . . . . . . . . . . . . . Leg . | . . . . . . . . . . . . . . . . . . . . . . . . . Wheel 6 | 1 1 3 . 1 . . . . . . . . . . . . . . . . . . . . Hover . | . . . . . . . . . . . . . . . . . . . . . . . . . Flight 33 | . . . . 2 6 . 1 . . . 1 3 . 1 . . . . 1 1 13 . 1 3 Utility 89 | 2 1 1 . 3 9 . 11 1 . 2 . 8 . 5 1 4 1 . 1 1 30 2 . 6 Device 51 | 1 . 1 . 2 5 . 6 . . . . 4 . 5 . 2 1 . 1 . 16 2 . 5 Storage 8 | 1 1 . . 1 . . 2 . . 1 . . . . . . . . . 1 1 . . . Processor 12 | . . . . . 2 . 1 . . . . 1 . . . . . . . . 8 . . . Hackware 7 | . . . . . 2 . 2 . . . . 2 . . . 1 . . . . . . . . Protection 11 | . . . . . . . . 1 . 1 . 1 . . 1 1 . . . . 5 . . 1 Artifact . | . . . . . . . . . . . . . . . . . . . . . . . . . Weapon 39 | 2 1 2 . 2 3 . 2 . . . . 1 . 3 2 . . 1 1 1 18 . . . Energy Gun 4 | 1 . . . . . . . . . . . . . . . . . . . . 3 . . . Energy Cannon 6 | . . 2 . . 1 . . . . . . . . . . . . . 1 . 2 . . . Ballistic Gun 5 | 1 . . . . 1 . . . . . . . . . . . . . . . 3 . . . Ballistic Cannon 3 | . . . . . 1 . . . . . . . . . . . . . . . 2 . . . Launcher 4 | . . . . . . . . . . . . . . 1 . . . . . . 3 . . . Special Weapon 5 | . 1 . . . . . . . . . . . . . 2 . . 1 . . 1 . . . Impact Weapon 1 | . . . . . . . 1 . . . . . . . . . . . . . . . . . Slashing Weapon 7 | . . . . 2 . . 1 . . . . . . 1 . . . . . 1 2 . . . Piercing Weapon 4 | . . . . . . . . . . . . 1 . 1 . . . . . . 2 . . . Special Melee Weapon . | . . . . . . . . . . . . . . . . . . . . . . . . . Unidentified Prototypes 53 | . . 1 . . 1 . 2 1 . 3 . . . 3 . 3 . . . 4 35 . . . Corrupted Parts 1 | . . . . . . . . . . . . . . . . . . . . . 1 . . . System Corruption 10 | . . . . . . . . . . . . . . . . . . . . . 10 . . . Parts Lost 53 | . . 1 . . 10 . 1 . . . 3 1 . 1 . . 1 1 1 . 13 . . 20 Power 5 | . . . . . . . . . . . . . . 1 . . . . . . 2 . . 2 Propulsion 13 | . . . . . 4 . . . . . 1 . . . . . . . . . 2 . . 6 Utility 26 | . . . . . 4 . 1 . . . 2 . . . . . 1 . 1 . 6 . . 11 Weapon 9 | . . 1 . . 2 . . . . . . 1 . . . . . 1 . . 3 . . 1 Highest Loss Streak 20 | . . 1 . . 9 . 1 . . . 2 1 . 1 . . 1 1 1 . 4 . . 20 To Critical Strikes . | . . . . . . . . . . . . . . . . . . . . . . . . . Average Backups 13 | 3 8 14 14 8 6 4 7 11 12 13 13 14 14 13 12 13 14 12 12 13 18 22 22 22 Power 1 | . 1 1 1 . . . . . . . . . 1 . . . . . . 1 2 3 4 3 Propulsion 2 | 1 5 6 6 3 . . . 1 1 1 . 1 1 1 1 1 1 1 1 2 2 2 1 2 Utility 5 | . 1 3 5 2 3 2 3 5 5 5 5 4 5 4 4 6 7 6 5 5 8 12 12 12 Weapon 2 | . 1 2 1 . . . . 1 1 2 2 1 2 2 2 3 3 3 2 3 5 3 4 3 Tool/Special . | . . . . . . . . . . . . . . . . . . . . . . . . . Unused Backups 27 | . 1 3 . . 4 2 2 . . . . 1 . . . . . . . 2 6 . . 6 Power 7 | . . . . . . 1 . . . . . . . . . . . . . . 2 . . 4 Propulsion 4 | . 1 1 . . 1 . . . . . . . . . . . . . . 1 . . . . Utility 10 | . . 2 . . 1 1 2 . . . . . . . . . . . . . 3 . . 1 Weapon . | . . . . . . . . . . . . . . . . . . . . . . . . . Tool/Special 6 | . . . . . 2 . . . . . . 1 . . . . . . . 1 1 . . 1 Average Slot Usage (%) 77 | . 85 84 100 79 41 76 75 73 73 72 68 76 78 77 83 78 74 79 75 74 78 77 72 76 Engine 2 | . . . 14 12 . . . . . . . . . . . . . . . . 1 . . . Core 3 | . . . . . 2 5 4 10 10 10 10 9 10 5 5 5 5 5 4 4 3 4 4 3 Reactor 1 | . . . . . . . . . . . . . . 4 5 5 5 5 4 4 3 4 4 3 Wheel 7 | . 20 28 28 26 1 . . . . . . . . . . . . . . . . . . . Flight 15 | . . . . 1 14 23 23 25 26 26 26 21 21 21 21 21 21 21 18 18 22 21 20 22 Device 15 | . 14 13 14 13 8 17 13 10 10 9 9 14 15 15 10 6 1 8 14 16 20 25 24 22 Storage 6 | . 14 14 14 12 1 . 4 5 5 5 5 4 5 5 5 5 5 5 4 4 4 4 4 3 Processor 6 | . . . . . 3 11 9 10 10 10 10 10 10 10 10 10 10 10 9 9 9 8 8 7 Hackware 3 | . . . . . 2 5 7 . . . . 6 10 10 10 10 10 10 9 4 1 . . . Protection 1 | . . . . . . . . 4 5 4 5 2 . . 4 8 10 6 3 5 1 3 4 7 Energy Gun 1 | . 12 5 . . . . . . . . . . . . . . . . . . . . . . Energy Cannon 3 | . . 16 28 4 . 5 4 . . . . . . . 4 . . . . . . . 1 . Special Weapon 1 | . 4 6 . . . . . . . . . . . . 4 . . 1 . . . . . . Slashing Weapon 1 | . . . . 7 . . 2 5 5 5 . 2 . 3 . 4 5 2 . 3 . 3 2 3 Peak Build Rating 260 | 6 7 16 16 16 85 85 108 114 111 112 112 124 117 130 130 129 133 138 141 157 232 256 254 260 Average Rating 112 | 4 6 11 14 9 47 84 101 108 110 111 97 114 113 124 121 126 127 134 135 150 195 244 245 246 On Entrance 104 | . 6 7 16 13 14 84 85 107 109 111 112 82 117 113 130 121 128 133 124 128 157 215 245 254 Avg Prop Armor Cover (%) 6 | 15 14 . . 7 23 . 3 . . . . . . . . . . . . . . . . . Naked Turns 17 | . . . . 2 15 . . . . . . . . . . . . . . . . . . . Heaviest Build 83 | 14 25 42 42 42 31 21 45 51 51 51 51 48 36 46 54 54 54 54 55 63 83 67 80 76 Greatest Support 86 | 10 26 36 36 32 45 45 53 53 53 53 53 54 49 57 57 57 57 60 68 68 86 86 78 78 Greatest Overweight (x) 7 | 1 2 1 2 2 7 . . . . . 1 1 . . . . . . . 1 1 . 1 2 Average Overweight (x) . | . . . 1 . . . . . . . . . . . . . . . . . . . . . Largest Inventory Capacity 25 | 8 15 15 15 15 15 5 15 15 15 15 15 15 15 15 15 15 15 15 15 15 25 25 25 25 Average Capacity 15 | 7 11 15 15 14 7 5 10 15 15 15 15 15 15 15 15 15 15 15 15 15 20 25 25 24 Most Carried 25 | 4 11 15 15 15 14 5 11 12 13 14 15 15 15 15 15 15 15 15 15 15 25 25 23 25 Average Carried 14 | 3 8 14 15 9 6 4 8 11 12 13 14 14 15 14 14 14 14 14 13 14 19 22 22 22 Final Capacity 25 | 8 15 15 15 15 5 5 15 15 15 15 15 15 15 15 15 15 15 15 15 15 25 25 25 5 Final Carried 24 | 4 11 15 15 14 4 5 11 12 13 14 15 15 15 15 15 15 14 14 15 15 24 23 22 5 Class Distribution -------------------- 24% | Mutant 15% | Hacker-Ninja 12% | Scavenger-Scout 7% | Scavenger-Ninja 6% | Scavenger-Sprinter 6% | Scout 6% | Scavenger-Mutant 5% | Infiltrator-Ninja 4% | Hacker-Scout 3% | Ninja Dominant Class ---------------- Mutant | -10/Materials Mutant | -10/Subcaves Scavenger-Mutant | -7/Recycling Mutant | -7/Scraptown Sprinter | -5/Factory Scout | -5/Waste Hacker-Ninja | -5/Factory Scout | -5/Upper Caves Scout | -5/Upper Caves Scout | -5/Zhirov Scout | -4/Proximity Caves Hacker-Ninja | -4/Factory Hacker-Sprinter | -4/Waste Hacker-Ninja | -4/Factory Hacker-Scout | -4/Extension Hacker-Sprinter | -4/Cetus Hacker-Sprinter | -4/Archives Hacker-Ninja | -4/Hub_04(d) Hacker-Ninja | -3/Research Infiltrator-Ninja | -3/Quarantine Scavenger-Scout | -3/Protoforge Scavenger-Ninja | -2/Research Scavenger-Ninja | -1/Access Scavenger-Ninja | -1/Command Resources | -11 -10 -10 -7 -7 -5 -5 -5 -5 -5 -5 -4 -4 -4 -4 -4 -4 -4 -4 -3 -3 -3 -2 -1 -1 ----------- Run | Yrd Mat Sub Rec Scr Fac Was Fac Upp Upp Zhi Pro Fac Was Fac Ext Cet Arc Hub Res Qua Frg Res Acc Com Matter Collected 12150 | 336 120 85 . 140 136 . 394 30 41 69 10 230 . 190 221 19 52 17 277 94 9329 . . 360 Remotely 60 | . . . . . . . . . . . . . . . . . . . . . 60 . . . Salvage Created 13393 | 192 377 19 58 . 156 . 422 . . 541 . 352 . 497 117 . 256 44 337 19 8969 . . 1037 Parts 637 | 16 30 . 2 . 8 . 16 . . 5 . 22 . 32 2 . 12 4 10 4 462 . . 12 Haulers Intercepted 3 | . 2 . . . . . 1 . . . . . . . . . . . . . . . . . Recyclers Shooed 2 | . 2 . . . . . . . . . . . . . . . . . . . . . . . Parts Field Recycled . | . . . . . . . . . . . . . . . . . . . . . . . . . Retrieved Matter . | . . . . . . . . . . . . . . . . . . . . . . . . . Parts Self-Destructed 22 | . . 20 . . . . . . . 2 . . . . . . . . . . . . . . Prevented . | . . . . . . . . . . . . . . . . . . . . . . . . . Parts Restored 9 | . . . . . . . . . . . . . . . . . . . . . 9 . . . Faulty 9 | . . . . . . . . . . . . . . . . . . . . . 9 . . . Kills | -11 -10 -10 -7 -7 -5 -5 -5 -5 -5 -5 -4 -4 -4 -4 -4 -4 -4 -4 -3 -3 -3 -2 -1 -1 ------- Run | Yrd Mat Sub Rec Scr Fac Was Fac Upp Upp Zhi Pro Fac Was Fac Ext Cet Arc Hub Res Qua Frg Res Acc Com Combat Hostiles Destroyed 148 | . 4 . 1 . 2 . . . . . . 1 . 5 2 . 2 1 . 2 126 . . 2 Melee 23 | . . . . . . . . . . . . 1 . . . . 2 . . 2 16 . . 2 Guns 7 | . 4 . . . 2 . . . . . . . . . . . . . . . 1 . . . Cannons 98 | . . . 1 . . . . . . . . . . . 1 . . . . . 96 . . . AOE 18 | . . . . . . . . . . . . . . 5 . . . 1 . . 12 . . . Classes Destroyed 27 | 3 4 1 1 . . . . . . . . 2 . . . . . 1 . . 15 . . . Worker 8 | 2 1 . . . . . 1 . . . . . . 3 . . . . 1 . . . . . Builder 9 | . . . . . . . . . . . . 5 . 3 . . . . 1 . . . . . Tunneler 7 | 6 . . . . . . . . . . . . . 1 . . . . . . . . . . Hauler 3 | . 2 . . . . . 1 . . . . . . . . . . . . . . . . . Recycler 12 | 1 2 . . . 1 . 2 . . . . 1 . 3 . . . . 2 . . . . . Mechanic 7 | . . . . . . . . . . . . . . . . . . . . . 7 . . . Operator 6 | . 1 . . . . . 1 . . . . . . 1 . . 2 1 . . . . . . Drone 12 | . . . . . . . . . . . . 1 . . . . . . . 2 9 . . . Turret 1 | . . 1 . . . . . . . . . . . . . . . . . . . . . . Watcher 12 | . 2 . . . . . 2 . . . . 4 . 2 . . . 1 1 . . . . . Swarmer 22 | . 4 . . . 2 . . . . . . . . 5 1 . . . . . 10 . . . Cutter 1 | . . . . . . . . . . . . . . . . . . 1 . . . . . . Saboteur 1 | . . . . . . . . . . . . . . . . . . . . . 1 . . . Grunt 9 | . . . . . . . . . . . . . . . . . . . . . 9 . . . Brawler 8 | . . . . . . . . . . . . . . . . . . . . . 8 . . . Duelist 2 | . . . . . . . . . . . . . . . . . . . . . 2 . . . Protector 6 | . . . . . . . . . . . . . . . . . . . . . 6 . . . Researcher 1 | . . . . . . . . . . . . . . . . . . . . . 1 . . . Sentry 18 | . . . 1 . . . . . . . . . . . 1 . 2 . . . 14 . . . Hunter 12 | . . . . . . . . . . . . . . . . . . . . . 12 . . . Programmer 11 | . . . . . . . . . . . . . . . . . . . . . 10 . . 1 Decapitator 10 | . . . . . . . . . . . . . . . . . . . . . 10 . . . Immortal 2 | . . . . . . . . . . . . . . . . . . . . . 2 . . . Striker 9 | . . . . . . . . . . . . . . . . . . . . . 9 . . . Executioner 15 | . . . . . . . . . . . . . . . . . . . . . 15 . . . Alpha 7 2 | . . . . . . . . . . . . . . . . . . . . . 2 . . . V-Series 6 | . . . . . . . . . . . . . . . . . . . . . 6 . . . Elite 3 | . . . . . . . . . . . . . . . . . . . . . 3 . . . Scrapoid 3 | . . . . . . . . . . . . . . . . . . . . . 3 . . . Best Kill Streak 14 | 7 5 1 1 . 2 . 2 . . . . 2 . 14 1 . 2 2 1 2 10 . . 1 Combat Bots Only 9 | . 3 . 1 . 2 . . . . . . 1 . 5 1 . 1 1 . 2 9 . . 1 Max Kills in Single Turn 14 | 1 1 1 1 . 1 . 1 . . . . 1 . 14 1 . 1 1 1 1 3 . . 1 Gunslinging . | . . . . . . . . . . . . . . . . . . . . . . . . . Exploded 5 | . . . . . . . . . . . . . . 5 . . . 1 . . 2 . . . Melee 1 | . . . . . . . . . . . . 1 . . . . 1 . . 1 1 . . 1 Uniques/NPCs Destroyed 1 | . . . . . . . . . . . . . . . . . . . . . . . . 1 MAIN.C Shell (-1/Command) Combat | -11 -10 -10 -7 -7 -5 -5 -5 -5 -5 -5 -4 -4 -4 -4 -4 -4 -4 -4 -3 -3 -3 -2 -1 -1 -------- Run | Yrd Mat Sub Rec Scr Fac Was Fac Upp Upp Zhi Pro Fac Was Fac Ext Cet Arc Hub Res Qua Frg Res Acc Com Hostile Shots Fired 855 | . 16 5 27 . 166 . 22 17 11 . 21 31 . 30 16 10 18 23 10 5 230 11 . 186 Missed 404 | . 8 3 11 . 65 . 17 8 7 . 12 15 . 14 10 7 10 10 4 3 126 7 . 67 Intercepted 2 | . . . . . . . . . . . . . . . . . . . . . 2 . . . Hits 451 | . 8 2 16 . 101 . 5 9 4 . 9 16 . 16 6 3 8 13 6 2 104 4 . 119 Melee 9 | . . . . . . . . . . . . . . . . . . 3 . . 5 . . 1 Projectile 442 | . 8 2 16 . 101 . 5 9 4 . 9 16 . 16 6 3 8 10 6 2 99 4 . 118 AOE 26 | . . 1 . . . . . . . . 6 . . . . . . 2 . . 1 . . 16 Critical Strikes 38 | . . . . . 4 . . . . . . 1 . . 1 . . 2 . 1 15 . . 14 Actively Blocked 24 | . . . . . . . . . . . . 1 . . . . . 1 . . 10 . . 12 Part Disruptions 5 | . . . . . . . . . . . . . . . . . . 1 . . . . . 4 Damage Taken 13992 | . 119 185 117 . 1849 . 79 149 70 . 443 258 . 260 146 86 205 534 165 63 3943 149 . 5172 Core 3598 | . 22 147 33 . 858 . . . . . 15 51 . 73 40 30 . 88 . . 589 19 . 1633 Absorbed by Shields 10 | . . . . . . . . . . . . . . 4 6 . . . . . . . . . Redirected to Shielding 507 | . . . . . . . . . . . . 64 . . . 21 33 . . . 102 . . 287 Ignored by Resistances 375 | . . . . . . . . . . . . . . . . . . . . . . . . 375 Regen/Repaired (Parts) 2568 | . . . . . 12 . 89 . . . . . . 6 46 58 62 126 264 258 582 138 . 927 Core Remaining (%) 58 | 100 . . . 19 . . . . . . 12 . . . . . . 75 . . 48 98 . . Volleys Fired 437 | 22 31 19 4 . 27 . 27 3 2 . 4 3 . 6 42 1 . 4 2 . 234 1 1 4 Largest 2 | 2 2 2 2 . 1 . 1 1 1 . 1 1 . 1 1 1 . 1 1 . 2 1 1 1 Hottest 190 | 70 100 160 160 . 85 . 85 85 85 . 85 85 . 85 85 . . 80 105 . 190 140 140 140 Shots Fired 624 | 44 60 21 7 . 27 . 27 3 2 . 4 3 . 6 42 1 . 4 2 . 365 1 1 4 Gun 155 | 44 59 1 . . 12 . . . . . . . . . . . . . . . 39 . . . Cannon 428 | . . 10 7 . 15 . 27 3 2 . 4 3 . 5 32 . . . 2 . 312 1 1 4 Launcher 17 | . . . . . . . . . . . . . . 1 . . . 4 . . 12 . . . Special 24 | . 1 10 . . . . . . . . . . . . 10 1 . . . . 2 . . . Kinetic 384 | 22 30 . . . 22 . . . . . . . . . . . . . . . 310 . . . Thermal 210 | 22 30 21 7 . 5 . 27 3 2 . 4 3 . 5 32 . . . 2 . 41 1 1 4 Explosive 17 | . . . . . . . . . . . . . . 1 . . . 4 . . 12 . . . Electromagnetic . | . . . . . . . . . . . . . . . . . . . . . . . . . Robot Hit Streak 26 | 5 5 2 4 . 2 . . . . . . 1 . . 8 2 . 5 . . 26 . . . Robot Miss Streak 8 | 2 4 2 1 . 5 . . . . . . 1 . . 2 . . . . . 8 . . . Penetration Max 2 | . . . . . . . . . . . . . . . . . . . . . 2 . . . Secondary Targets . | . . . . . . . . . . . . . . . . . . . . . . . . . Shots Hit Robots 495 | 25 31 2 4 . 6 . 13 . . 10 . 18 . 7 16 1 13 5 5 2 298 . . 39 Core Hits 563 | 10 19 1 2 . 6 . 3 . . 4 . 9 . 13 3 . 5 4 4 1 460 . . 19 Critical Kills 107 | . . . . . . . . . . . . 1 . . 1 . . . . . 105 . . . Critical Parts Destroyed 142 | . . . . . 1 . . . . . . . . . . . . . . . 141 . . . Critical Strikes 335 | 1 2 . . . 1 . 1 . . . . 3 . . 1 . . . 1 . 307 . . 18 Burn 3 | 1 2 . . . . . . . . . . . . . . . . . . . . . . . Meltdown 2 | . . . . . . . . . . . . . . . 1 . . . . . 1 . . . Destroy 284 | . . . . . 1 . . . . . . . . . . . . . . . 283 . . . Smash 1 | . . . . . . . . . . . . 1 . . . . . . . . . . . . Sever 2 | . . . . . . . 1 . . . . 1 . . . . . . . . . . . . Impale 43 | . . . . . . . . . . . . 1 . . . . . . 1 . 23 . . 18 Melee Attacks 378 | . . . . . 3 . 52 2 9 10 . 40 . 41 1 . 19 21 11 12 89 16 1 51 Impact 27 | . . . . . . . 21 . . . . 6 . . . . . . . . . . . . Slashing 205 | . . . . . 3 . 31 2 9 10 . 32 . 29 . . 19 15 . 9 12 16 1 17 Piercing 146 | . . . . . . . . . . . . 2 . 12 1 . . 6 11 3 77 . . 34 Sneak Attacks 34 | . . . . . . . 5 . . . . 6 . 3 . . 2 . 4 2 12 . . . Combat Hostiles 3 | . . . . . . . . . . . . . . . . . . . . 2 1 . . . Follow-up Attacks 6 | . . . . . . . . . . . . . . . . . . . . . . . . 6 Damage Inflicted 22133 | 306 410 51 113 . 485 . 1028 . . 1124 . 1228 . 2027 312 . 1142 429 517 314 10366 . . 2281 Guns 1925 | 306 400 . . . 68 . . . . . . . . . . . . . . . 1151 . . . Cannons 2962 | . . 51 113 . 184 . . . . . . 29 . . 277 . . . . . 2308 . . . Explosions 4184 | . 10 . . . 233 . . . . . . . . 1291 35 . . 261 . . 2354 . . . Melee 13062 | . . . . . . . 1028 . . 1124 . 1199 . 736 . . 1142 168 517 314 4553 . . 2281 Ramming . | . . . . . . . . . . . . . . . . . . . . . . . . . Kinetic 3896 | 132 200 . . . 192 . . . . . . . . . . . . . . . 3372 . . . Thermal 2494 | 174 200 51 113 . 293 . . . . . . 29 . 1235 312 . . . . . 87 . . . Explosive 2671 | . . . . . . . . . . . . . . 56 . . . 261 . . 2354 . . . Electromagnetic 10 | . 10 . . . . . . . . . . . . . . . . . . . . . . . Impact 338 | . . . . . . . 281 . . . . 57 . . . . . . . . . . . . Slashing 5614 | . . . . . . . 747 . . 1124 . 1002 . 538 . . 1142 168 . 314 116 . . 463 Piercing 7110 | . . . . . . . . . . . . 140 . 198 . . . . 517 . 4437 . . 1818 Highest Corruption 15 | . . . . . . 6 6 . . . 2 3 . 1 3 3 3 6 . . 10 . . 15 Average Corruption 2 | . . . . . . 6 1 . . . 2 2 . 1 3 3 3 3 . . 4 . . 2 Corruption Purged 32 | . . . . . . . 8 . . . . 3 . 1 . . . . . . 20 . . . Corruption Blocked . | . . . . . . . . . . . . . . . . . . . . . . . . . Effects 54 | . . . . . . . 4 . . . 1 12 . 3 2 2 2 6 . . 16 . . 6 Message Errors 13 | . . . . . . . 1 . . . . 4 . . 1 1 . 2 . . 4 . . . Matter Fused 18 | . . . . . . . 2 . . . . 2 . 2 . 1 1 3 . . 6 . . 1 Heat Flow Errors 2 | . . . . . . . . . . . . . . . . . . . . . 1 . . 1 Energy Discharges 11 | . . . . . . . . . . . . 3 . 1 1 . 1 . . . 2 . . 3 Data Loss (minor) 7 | . . . . . . . 1 . . . 1 2 . . . . . 1 . . 1 . . 1 Data Loss (major) 1 | . . . . . . . . . . . . 1 . . . . . . . . . . . . Alerts 2 | . . . . . . . . . . . . . . . . . . . . . 2 . . . Overload Shots . | . . . . . . . . . . . . . . . . . . . . . . . . . Overflow Damage 2599 | . . . . . 2 . 306 . . 284 . 209 . 352 . . 167 98 80 96 1005 . . . Projectiles 3 | . . . . . . . . . . . . . . . . . . . . . 3 . . . Explosions 267 | . . . . . 2 . . . . . . . . 224 . . . 41 . . . . . . Melee 2329 | . . . . . . . 306 . . 284 . 209 . 128 . . 167 57 80 96 1002 . . . Knockbacks 11 | . . . . . 6 . . . . . . . . . . . . . . . 5 . . . Impact . | . . . . . . . . . . . . . . . . . . . . . . . . . Kinetic 11 | . . . . . 6 . . . . . . . . . . . . . . . 5 . . . Secondary . | . . . . . . . . . . . . . . . . . . . . . . . . . Self-Inflicted Damage 507 | . 56 . . . 225 . . . . . . . . . . . . . . . 226 . . . Shots 10 | . 2 . . . 2 . . . . . . . . . . . . . . . 6 . . . Rammed . | . . . . . . . . . . . . . . . . . . . . . . . . . Targets Rammed . | . . . . . . . . . . . . . . . . . . . . . . . . . Kicked . | . . . . . . . . . . . . . . . . . . . . . . . . . Crushed . | . . . . . . . . . . . . . . . . . . . . . . . . . Highest Temperature 363 | 18 . 24 315 . 76 . 310 267 149 62 229 96 . 150 363 37 8 224 144 37 151 102 96 240 Average Temperature 60 | 10 . 16 148 . 34 . 61 69 62 23 110 20 . 51 116 17 4 51 24 12 55 60 48 107 Received Heat Transfer 605 | . . 6 30 . 100 . 9 . . . . 18 . 27 73 18 27 9 18 9 171 9 . 81 Effects 6 | . . . . . . . . 1 . . . . . . 5 . . . . . . . . . Shutdowns 1 | . . . . . . . . . . . . . . . 1 . . . . . . . . . Energy Bleed 2 | . . . . . . . . 1 . . . . . . 1 . . . . . . . . . Interference 3 | . . . . . . . . . . . . . . . 3 . . . . . . . . . Siege Activations . | . . . . . . . . . . . . . . . . . . . . . . . . . Martial Activations . | . . . . . . . . . . . . . . . . . . . . . . . . . Shielding Activations . | . . . . . . . . . . . . . . . . . . . . . . . . . Robots Disrupted . | . . . . . . . . . . . . . . . . . . . . . . . . . Combat Hostiles . | . . . . . . . . . . . . . . . . . . . . . . . . . Robots Corrupted . | . . . . . . . . . . . . . . . . . . . . . . . . . Combat Hostiles . | . . . . . . . . . . . . . . . . . . . . . . . . . Parts Fried 1 | . . . . . . . 1 . . . . . . . . . . . . . . . . . Impact Corruptions 2 | . . . . . . . 2 . . . . . . . . . . . . . . . . . Robots Melted 2 | . . . . . . . . . . . . . . . 1 . . . . . 1 . . . Combat Hostiles 2 | . . . . . . . . . . . . . . . 1 . . . . . 1 . . . Parts Melted 13 | 1 1 . 1 . 1 . . . . . . . . 2 3 . . . . . 4 . . . Heat Transferred 3248 | 592 740 74 148 . 274 . . . . . . 37 . 950 383 . . . . . 50 . . . Parts Sabotaged . | . . . . . . . . . . . . . . . . . . . . . . . . . Parts Stolen . | . . . . . . . . . . . . . . . . . . . . . . . . . Parts Stripped . | . . . . . . . . . . . . . . . . . . . . . . . . . Power Chain Reactions . | . . . . . . . . . . . . . . . . . . . . . . . . . Alert | -11 -10 -10 -7 -7 -5 -5 -5 -5 -5 -5 -4 -4 -4 -4 -4 -4 -4 -4 -3 -3 -3 -2 -1 -1 ------- Run | Yrd Mat Sub Rec Scr Fac Was Fac Upp Upp Zhi Pro Fac Was Fac Ext Cet Arc Hub Res Qua Frg Res Acc Com Maximum Alert Level 5 | . . . . . 1 . . . . . . . . 2 2 1 . 1 1 1 5 5 4 4 Low Security (%) 61 | 100 100 . 100 . 75 100 100 . . . . 100 100 78 . 52 100 72 90 81 32 . . . Level 1 7 | . . . . . 24 . . . . . . . . . 66 47 . 27 9 18 2 . . . Level 2 6 | . . . . . . . . . . . . . . 21 33 . . . . . 11 . . . Level 3 7 | . . . . . . . . . . . . . . . . . . . . . 13 . . 73 Level 4 8 | . . . . . . . . . . . . . . . . . . . . . 20 . 100 26 Level 5 8 | . . . . . . . . . . . . . . . . . . . . . 19 100 . . High Security . | . . . . . . . . . . . . . . . . . . . . . . . . . Max Security . | . . . . . . . . . . . . . . . . . . . . . . . . . Peak Influence 3523 | 10 127 . 37 . 397 138 106 . . . . 42 . 493 493 250 65 298 212 214 3523 2004 1311 1155 Initial 1978 | . . . 37 . . 138 82 . . . . 40 . . 221 250 58 18 156 1 46 1978 1196 836 Average 476 | 1 58 . 5 . 117 131 47 . . . . 6 . 112 353 199 49 131 126 114 1026 1915 1238 1022 Influence Increases 10130 | 45 301 168 112 . 702 . 410 90 225 15 105 142 . 733 597 15 67 474 207 405 4366 276 132 543 Destroy 0b10 Robot/C 3000 | . 80 100 20 . 40 . . . . . . . . 100 300 . 40 20 . . 2260 . . 40 Destroy 0b10 Robot/NC 450 | 45 40 . . . 5 . 35 . . 15 . 55 . 65 5 . 10 10 25 10 130 . . . Destroy Leader 372 | . 28 . . . . . 6 . . . . 8 . 14 40 . . 2 2 . 262 . . 10 Allied During Kill 84 | . . 8 . . . . . . . . . . . . 70 . . . . . 6 . . . Trap Triggered on 0b10 10 | . . . . . . . . . . . . . . . . . . . . 10 . . . . Successful Hack 894 | . 30 . 44 . 42 . 94 . . . . 34 . 22 3 . . 44 151 236 129 13 14 38 Select Force Hacks 120 | . 60 . 30 . . . . . . . . . . . . . . . . . 30 . . . Disable Machine 885 | . 45 . . . 45 . 30 . . . . 15 . 225 45 . . 90 . 45 330 . 15 . Destroy Structure 1005 | . 3 . 3 . 60 . 110 . . . . 30 . 142 44 . 2 68 14 14 424 48 3 40 Partial Spotted 420 | . . . . . 60 . 90 . . . . . . 45 15 . 15 90 15 15 60 15 . . Lose Combat Pursuer 2190 | . 15 60 15 . 450 . 45 90 225 . 105 . . 120 75 15 . 150 . 75 735 . . 15 Active Sensor Use 700 | . . . . . . . . . . . . . . . . . . . . . . 200 100 400 Influence Decreases 9415 | 45 301 89 191 . 305 279 503 105 110 140 40 207 . 279 603 318 157 231 502 325 931 1800 818 1136 Entered New Map 4045 | . . . 42 . . 259 36 10 2 125 . 25 . . 233 198 87 37 142 2 37 1540 798 472 Time Decay 3949 | 45 301 69 149 . 251 20 447 95 108 15 20 182 . 246 230 80 60 150 180 223 744 100 20 214 Search Patrol Dispatched 100 | . . . . . . . . . . . . . . . . . . . . 100 . . . . Lost Part 444 | . . . . . 44 . 10 . . . 20 . . 10 . . 10 10 10 . 130 . . 200 Lost Ally 520 | . . 20 . . 10 . 10 . . . . . . . 140 40 . . 20 . 20 10 . 250 Purge Threat 357 | . . . . . . . . . . . . . . 23 . . . 34 150 . . 150 . . Squads Dispatched 92 | . 2 . . . 8 . 18 . 1 . . 9 . 12 2 . . 5 4 2 10 6 1 12 Investigation 53 | . 2 . . . 4 . 14 . 1 . . 5 . 7 2 . . . 2 1 6 3 1 5 Extermination 20 | . . . . . 2 . 3 . . . . 3 . 3 . . . 1 2 1 1 1 . 3 Reinforcement 17 | . . . . . 2 . 1 . . . . 1 . 2 . . . 4 . . 3 2 . 2 Assault 2 | . . . . . . . . . . . . . . . . . . . . . . . . 2 Garrison . | . . . . . . . . . . . . . . . . . . . . . . . . . Intercept . | . . . . . . . . . . . . . . . . . . . . . . . . . Searches Triggered 1 | . . . . . . . . . . . . . . . . . . . . 1 . . . . Unchained Authorized 3 | . . . . . . . . . . . . . . . . . . 1 1 1 . . . . Construction Impeded 2 | . . . . . 1 . . . . . . 1 . . . . . . . . . . . . Haulers Reinforced . | . . . . . . . . . . . . . . . . . . . . . . . . . Active Scanning Responses 7 | . . . . . . . . . . . . . . . . . . . . . . 2 1 4 Cargo Convoy Interrupts . | . . . . . . . . . . . . . . . . . . . . . . . . . Stealth | -11 -10 -10 -7 -7 -5 -5 -5 -5 -5 -5 -4 -4 -4 -4 -4 -4 -4 -4 -3 -3 -3 -2 -1 -1 --------- Run | Yrd Mat Sub Rec Scr Fac Was Fac Upp Upp Zhi Pro Fac Was Fac Ext Cet Arc Hub Res Qua Frg Res Acc Com Distress Signals 31 | . 1 . . . 3 . 1 . . . . 1 . . 1 2 . 3 1 2 13 2 . 1 Communications Jammed . | . . . . . . . . . . . . . . . . . . . . . . . . . Distress Signals . | . . . . . . . . . . . . . . . . . . . . . . . . . Times Spotted 509 | . 13 14 2 . 43 6 16 7 17 . 14 25 6 21 24 5 2 18 14 9 196 12 1 44 Peak Tracking Total 34 | . 4 3 1 . 14 6 5 6 13 . 9 5 6 6 7 5 1 8 8 6 13 8 1 34 Tactical Retreats 80 | . 1 3 1 . 10 . 6 2 4 . 3 4 . 5 4 1 . 4 2 3 24 1 . 2 ECM-based Alert Blocks 46 | . . . . . . . 8 . . . . 10 . 5 . . . . 6 1 . 5 . 11 Traps | -11 -10 -10 -7 -7 -5 -5 -5 -5 -5 -5 -4 -4 -4 -4 -4 -4 -4 -4 -3 -3 -3 -2 -1 -1 ------- Run | Yrd Mat Sub Rec Scr Fac Was Fac Upp Upp Zhi Pro Fac Was Fac Ext Cet Arc Hub Res Qua Frg Res Acc Com Traps Triggered 33 | . . 2 . . 1 . 3 . . . . 3 . 2 2 . . . . . 18 1 . 1 Indirectly . | . . . . . . . . . . . . . . . . . . . . . . . . . Trap Hack Attempts . | . . . . . . . . . . . . . . . . . . . . . . . . . Triggered . | . . . . . . . . . . . . . . . . . . . . . . . . . Disarmed 4 | . . . . . . . . . . . . . . . . . . . . 4 . . . . Reprogrammed 8 | . . . . . . . . . . . . . . . . . . . . 8 . . . . Reused 1 | . . . . . . . . . . . . . . . . . . . . 1 . . . . Traps Extracted . | . . . . . . . . . . . . . . . . . . . . . . . . . Installed . | . . . . . . . . . . . . . . . . . . . . . . . . . Triggered 1 | . . . . . . . . . . . . . . . . . . . . 1 . . . . Machines | -11 -10 -10 -7 -7 -5 -5 -5 -5 -5 -5 -4 -4 -4 -4 -4 -4 -4 -4 -3 -3 -3 -2 -1 -1 ---------- Run | Yrd Mat Sub Rec Scr Fac Was Fac Upp Upp Zhi Pro Fac Was Fac Ext Cet Arc Hub Res Qua Frg Res Acc Com Machines Disabled 67 | . 3 2 . . 3 . 2 . 1 . . 1 . 15 3 . . 6 . 3 27 . 1 . Max in Single Turn 13 | . 3 1 . . 2 . 1 . 1 . . 1 . 13 2 . . 2 . 1 2 . 1 . Garrison Access 6 | . . . . . . . 1 . . . . 1 . . . . . 1 1 1 1 . . . Network Hub 3 | . . . . . . . . . . . . . . . . . . 3 . . . . . . Energy Cycler 1 | . . . . . . . . . . . . . . . 1 . . . . . . . . . Machines Repaired . | . . . . . . . . . . . . . . . . . . . . . . . . . Machines Dismantled 2 | . . . . . . . . . . . . . . . . . . 2 . . . . . . Machines Sabotaged . | . . . . . . . . . . . . . . . . . . . . . . . . . Overloaded Fab Kills . | . . . . . . . . . . . . . . . . . . . . . . . . . Hacking | -11 -10 -10 -7 -7 -5 -5 -5 -5 -5 -5 -4 -4 -4 -4 -4 -4 -4 -4 -3 -3 -3 -2 -1 -1 --------- Run | Yrd Mat Sub Rec Scr Fac Was Fac Upp Upp Zhi Pro Fac Was Fac Ext Cet Arc Hub Res Qua Frg Res Acc Com Machines Accessed 167 | . 9 2 9 2 15 . 26 . 2 4 . 13 . 22 6 . . 9 11 12 17 2 4 2 Terminals 91 | . 7 . 6 . 8 . 10 . 1 . . 6 . 12 3 . . 8 4 10 10 1 3 2 Fabricators 2 | . . . . . . . 1 . . . . . . 1 . . . . . . . . . . Repair Stations 11 | . . . . . 1 . 3 . . . . . . 1 1 . . . 2 1 1 1 . . Recycling Units 33 | . 2 . 3 . 2 . 7 . . . . 5 . 6 2 . . . 2 . 3 . 1 . Scanalyzers 12 | . . . . . 3 . 3 . . . . . . 2 . . . . 2 . 2 . . . Garrison Access 9 | . . . . . 1 . 2 . . . . 2 . . . . . 1 1 1 1 . . . Total Hacks 624 | . 22 6 23 32 43 . 96 . 5 17 . 39 . 65 17 . . 32 52 85 63 11 7 9 Successful 386 | . 16 6 8 32 21 . 58 . 5 17 . 17 . 45 12 . . 19 33 47 37 8 2 3 Failed 236 | . 6 . 15 . 22 . 37 . . . . 22 . 19 5 . . 13 19 38 26 3 5 6 Catastrophic 35 | . 2 . . . 3 . 5 . . . . 3 . 3 . . . . 3 4 6 1 2 3 Database Lockouts 2 | . . . . . . . 1 . . . . . . 1 . . . . . . . . . . Manual 344 | . 20 . 23 . 26 . 48 . . . . 33 . 49 12 1 . 26 17 41 28 9 2 9 Terminals 418 | . 20 . 18 . 34 . 54 . 4 . . 29 . 51 11 . . 29 28 74 42 10 5 9 Fabricators 4 | . . . . . . . 3 . . . . . . 1 . . . . . . . . . . Repair Stations 32 | . . . . . 2 . 7 . . . . . . 1 2 . . . 8 8 3 1 . . Recycling Units 41 | . 2 . 5 . 2 . 8 . . . . 6 . 7 4 . . . 2 . 3 . 2 . Scanalyzers 50 | . . . . . 4 . 17 . . . . . . 5 . . . . 12 . 12 . . . Garrison Access 23 | . . . . . 1 . 7 . . . . 4 . . . . . 3 2 3 3 . . . Terminal Hacks 153 | . 5 6 . 32 4 . 11 . 5 17 . 3 . 15 2 . . 3 10 22 12 4 2 . Record 52 | . . 5 . 32 . . . . 5 5 . . . . . . . . . . 5 . . . Part Schematic 11 | . 1 . . . 2 . . . . 4 . . . . . . . 1 1 2 . . . . Robot Analysis 7 | . 2 . . . . . . . . 4 . . . . . . . . 1 . . . . . Prototype ID Bank 15 | . . . . . . . 3 . . 4 . . . 1 . . . . 1 3 2 1 . . Open Door 3 | . . . . . . . . . . . . . . 1 . . . . . . . . 2 . Level Access Points 1 | . . . . . . . . . . . . . . . . . . 1 . . . . . . Branch Access Points 5 | . . . . . . . 1 . . . . . . 1 . . . . 1 . 1 1 . . Emergency Access Points 1 | . . . . . . . . . . . . . . . . . . . . 1 . . . . Machine Index 2 | . . . . . . . . . . . . . . . . . . . 1 1 . . . . Terminal Index 4 | . 1 . . . . . . . . . . 1 . 1 . . . . . 1 . . . . Fabricator Index 1 | . . . . . . . . . . . . . . . . . . . . 1 . . . . Alert Level 1 | . . . . . . . . . . . . . . . . . . . 1 . . . . . Unreport Threat 5 | . . . . . . . . . . . . . . 2 . . . 1 1 . . 1 . . Locate Traps 6 | . 1 . . . . . . . . . . . . 1 . . . . 1 3 . . . . Disarm Traps 1 | . . . . . . . . . . . . . . . . . . . . 1 . . . . Reprogram Traps 3 | . . . . . . . . . . . . . . . . . . . . 3 . . . . Dispatch Records 1 | . . . . . . . . . . . . . . . . . . . . 1 . . . . Security Status 1 | . . . . . . . . . . . . . . . . . . . . 1 . . . . Extermination Status 2 | . . . . . . . 2 . . . . . . . . . . . . . . . . . Recall Investigation 5 | . . . . . . . . . . . . . . 2 2 . . . . 1 . . . . Recall Extermination 4 | . . . . . 1 . 1 . . . . 1 . 1 . . . . . . . . . . Registered Components 1 | . . . . . . . . . . . . . . . . . . . 1 . . . . . Registered Prototypes 1 | . . . . . . . . . . . . . . 1 . . . . . . . . . . Zone Layout 18 | . . . . . 1 . 4 . . . . 1 . 4 . . . . 1 3 3 1 . . Proto ID Catalog 2 | . . 1 . . . . . . . . . . . . . . . . . . 1 . . . Fabricator Hacks 2 | . . . . . . . 1 . . . . . . 1 . . . . . . . . . . Network Status 1 | . . . . . . . . . . . . . . 1 . . . . . . . . . . Load Schematic 1 | . . . . . . . 1 . . . . . . . . . . . . . . . . . Repair Station Hacks 14 | . . . . . . . 4 . . . . . . . 2 . . . 3 3 2 . . . Scan Component 8 | . . . . . . . 2 . . . . . . . 1 . . . 2 2 1 . . . Repair 6 | . . . . . . . 2 . . . . . . . 1 . . . 1 1 1 . . . Recycling Unit Hacks . | . . . . . . . . . . . . . . . . . . . . . . . . . Scanalyzer 30 | . . . . . . . 11 . . . . . . 3 . . . . 8 . 8 . . . Insert Component 13 | . . . . . . . 6 . . . . . . . . . . . 4 . 3 . . . Analyze 8 | . . . . . . . 4 . . . . . . . . . . . 2 . 2 . . . Retrieve Study 9 | . . . . . . . 1 . . . . . . 3 . . . . 2 . 3 . . . Garrison Access Hacks 6 | . . . . . . . 1 . . . . 1 . . . . . 1 1 1 1 . . . Seal Access 6 | . . . . . . . 1 . . . . 1 . . . . . 1 1 1 1 . . . Unauthorized Hacks 181 | . 11 . 8 . 17 . 30 . . . . 13 . 26 8 . . 15 11 21 14 4 . 3 Terminals 142 | . 9 . 7 . 14 . 18 . . . . 8 . 19 6 . . 15 9 21 10 3 . 3 Track 28 | . . . . . 4 . 2 . . . . . . 5 2 . . 6 . 6 3 . . . Assimilate 13 | . . . . . 1 . 1 . . . . 1 . . 1 . . 1 2 2 2 1 . 1 Botnet 46 | . 3 . 2 . 4 . 6 . . . . 2 . 8 3 . . 3 3 6 3 1 . 2 Disrupt 4 | . . . . . . . 2 . . . . . . . . . . . . . 2 . . . Operators 1 | . . . . . . . . . . . . . . . . . . . . 1 . . . . Skim 50 | . 6 . 5 . 5 . 7 . . . . 5 . 6 . . . 5 4 6 . 1 . . Fabricators . | . . . . . . . . . . . . . . . . . . . . . . . . . Repair Stations 4 | . . . . . 1 . 1 . . . . . . 1 . . . . . . . 1 . . Patch 4 | . . . . . 1 . 1 . . . . . . 1 . . . . . . . 1 . . Recycling Units 30 | . 2 . 1 . 2 . 7 . . . . 5 . 6 2 . . . 2 . 3 . . . Tunnel 3 | . 2 . 1 . . . . . . . . . . . . . . . . . . . . . Fedlink 26 | . . . . . 2 . 7 . . . . 5 . 6 2 . . . 2 . 2 . . . Scraphulk 1 | . . . . . . . . . . . . . . . . . . . . . 1 . . . Scanalyzers 1 | . . . . . . . . . . . . . . . . . . . . . 1 . . . Extract 1 | . . . . . . . . . . . . . . . . . . . . . 1 . . . Garrison Access 4 | . . . . . . . 4 . . . . . . . . . . . . . . . . . Broadcast 1 | . . . . . . . 1 . . . . . . . . . . . . . . . . . Decoy 1 | . . . . . . . 1 . . . . . . . . . . . . . . . . . Intercept 1 | . . . . . . . 1 . . . . . . . . . . . . . . . . . Watchers 1 | . . . . . . . 1 . . . . . . . . . . . . . . . . . Data Cores Recovered 1 | . . . . . . . . . . . . . . . . . . 1 . . . . . . Used . | . . . . . . . . . . . . . . . . . . . . . . . . . Hacking Detections 112 | . 7 . 8 . 12 . 19 . 1 . . 8 . 13 4 1 . 9 7 11 7 1 2 2 Full Trace Events 13 | . . . 3 . 1 . 6 . 1 . . . . . . . . . . 1 1 . . . Feedback Events 2 | . . . . . . . 1 . . . . . . . . . . . . . 1 . . . Corruption 2 | . . . . . . . 1 . . . . . . . . . . . . . 1 . . . Feedback Blocked . | . . . . . . . . . . . . . . . . . . . . . . . . . Robot Schematics Acquired 2 | . . . . . . . . . . . . . . . . . . . . . 2 . . . Robots Built . | . . . . . . . . . . . . . . . . . . . . . . . . . Authchips . | . . . . . . . . . . . . . . . . . . . . . . . . . Time . | . . . . . . . . . . . . . . . . . . . . . . . . . Total Robot Build Rating . | . . . . . . . . . . . . . . . . . . . . . . . . . Part Schematics Acquired 24 | . 1 . . . 2 . 4 . . 4 . . . . . . . 1 3 2 7 . . . Parts Built . | . . . . . . . . . . . . . . . . . . . . . . . . . Authchips . | . . . . . . . . . . . . . . . . . . . . . . . . . Time . | . . . . . . . . . . . . . . . . . . . . . . . . . Total Part Build Rating . | . . . . . . . . . . . . . . . . . . . . . . . . . Part Studies Acquired 9 | . . . . . . . 1 . . . . . . 3 . . . . 2 . 3 . . . Parts Repaired 6 | . . . . . . . 2 . . . . . . . 1 . . . 1 1 1 . . . Time 258 | . . . . . . . 96 . . . . . . . 74 . . . 28 20 40 . . . Parts Recycled . | . . . . . . . . . . . . . . . . . . . . . . . . . Recycled Matter . | . . . . . . . . . . . . . . . . . . . . . . . . . Retrieved Matter . | . . . . . . . . . . . . . . . . . . . . . . . . . Retrieved Components . | . . . . . . . . . . . . . . . . . . . . . . . . . Parts Scanalyzed 8 | . . . . . . . 4 . . . . . . . . . . . 2 . 2 . . . Part Schematics Acquired 8 | . . . . . . . 4 . . . . . . . . . . . 2 . 2 . . . Parts Damaged 2 | . . . . . . . 1 . . . . . . . . . . . . . 1 . . . Bothacking | -11 -10 -10 -7 -7 -5 -5 -5 -5 -5 -5 -4 -4 -4 -4 -4 -4 -4 -4 -3 -3 -3 -2 -1 -1 ------------ Run | Yrd Mat Sub Rec Scr Fac Was Fac Upp Upp Zhi Pro Fac Was Fac Ext Cet Arc Hub Res Qua Frg Res Acc Com Used RIF Installer . | . . . . . . . . . . . . . . . . . . . . . . . . . Robots Hacked 1 | . . . . . . . . . . . . . . . 1 . . . . . . . . . Non-combat . | . . . . . . . . . . . . . . . . . . . . . . . . . Combat 1 | . . . . . . . . . . . . . . . 1 . . . . . . . . . Robot Hacks Applied 1 | . . . . . . . . . . . . . . . 1 . . . . . . . . . parse_system 1 | . . . . . . . . . . . . . . . 1 . . . . . . . . . Relay Couplers Released . | . . . . . . . . . . . . . . . . . . . . . . . . . Fabnet Peak Effective % . | . . . . . . . . . . . . . . . . . . . . . . . . . Robots Rewired 4 | . . . . . . . . . . . . . . . 4 . . . . . . . . . Allies Hacked . | . . . . . . . . . . . . . . . . . . . . . . . . . Hacks Repelled . | . . . . . . . . . . . . . . . . . . . . . . . . . Allies | -11 -10 -10 -7 -7 -5 -5 -5 -5 -5 -5 -4 -4 -4 -4 -4 -4 -4 -4 -3 -3 -3 -2 -1 -1 -------- Run | Yrd Mat Sub Rec Scr Fac Was Fac Upp Upp Zhi Pro Fac Was Fac Ext Cet Arc Hub Res Qua Frg Res Acc Com Total Allies 27 | . . 8 . . 1 1 1 . . . . 1 1 . 8 1 . . 2 . 1 1 . 1 Largest Group 6 | . . 6 1 . 1 1 1 . . . . 1 1 . 5 1 . . 2 . 1 1 . 1 Highest-Rated Group 340 | . . 114 19 . 10 31 10 . . . . 26 46 . 340 137 . . 71 . 139 10 . 26 Highest-Rated Ally 159 | . . 19 19 . 10 31 10 . . . . 26 46 . 159 137 . . 45 . 139 10 . 26 Total Orders 6 | . . . . . 1 . . . . . . 5 . . . . . . . . . . . . STAY 3 | . . . . . . . . . . . . 3 . . . . . . . . . . . . FOLLOW 2 | . . . . . . . . . . . . 2 . . . . . . . . . . . . RETURN 1 | . . . . . 1 . . . . . . . . . . . . . . . . . . . Ally Attacks 150 | . . 25 1 . . 5 . . . . . . 1 . 60 9 . . . . 13 . . 36 Total Damage 5176 | . . 360 16 . . 65 . . . . . . 40 . 1902 222 . . . . 554 . . 2017 Kills 26 | . . 9 . . . . . . . . . . . . 14 . . . . . 3 . . . Allies Corrupted . | . . . . . . . . . . . . . . . . . . . . . . . . . Allies Melted . | . . . . . . . . . . . . . . . . . . . . . . . . . Intel | -11 -10 -10 -7 -7 -5 -5 -5 -5 -5 -5 -4 -4 -4 -4 -4 -4 -4 -4 -3 -3 -3 -2 -1 -1 ------- Run | Yrd Mat Sub Rec Scr Fac Was Fac Upp Upp Zhi Pro Fac Was Fac Ext Cet Arc Hub Res Qua Frg Res Acc Com Active Infowar (turns) 13347 | 6 754 202 599 963 550 44 1210 203 251 98 98 837 46 676 484 169 125 311 360 489 4085 203 58 526 Optics 8383 | . . . . 31 . . . . . . . 825 46 676 484 169 125 311 360 489 4080 203 58 526 Sensors 5529 | . . . . . 53 44 1210 203 251 96 98 837 3 641 484 7 4 285 360 489 464 . . . A.S.S. 3072 | . . . . . . . . . . . . . . . . . . . . . 2440 203 58 371 IFF 398 | . . . . . 341 44 13 . . . . . . . . . . . . . . . . . Structural 4438 | . . . . . 24 40 936 203 251 98 87 28 43 648 474 169 38 . 339 489 571 . . . Seismic 2624 | 6 754 202 599 932 131 . . . . . . . . . . . . . . . . . . . Machine Analysis 497 | . . . . . 419 44 34 . . . . . . . . . . . . . . . . . Cloaking 6143 | . . . . . 3 . . . . . . 836 46 658 71 . . 205 357 483 2816 202 58 408 ECM 1181 | . . . . . . . 217 . . . . 428 . 38 . . . . 107 277 30 59 . 25 Robot Analysis Total 7 | . 2 . . . . . . . . 4 . . . . . . . . 1 . . . . . Derelict Logs Recovered 9 | . . 1 . 5 . . . 2 1 . . . . . . . . . . . . . . . Drone Launches 15 | . . . . . 3 . . . . . . . . . . . . . . . . . . 12 Drone Recoveries 3 | . . . . . 3 . . . . . . . . . . . . . . . . . . . Exploration | -11 -10 -10 -7 -7 -5 -5 -5 -5 -5 -5 -4 -4 -4 -4 -4 -4 -4 -4 -3 -3 -3 -2 -1 -1 ------------- Run | Yrd Mat Sub Rec Scr Fac Was Fac Upp Upp Zhi Pro Fac Was Fac Ext Cet Arc Hub Res Qua Frg Res Acc Com Turns Passed 15169 | 220 754 1297 861 1075 685 44 1210 203 251 98 98 837 46 676 484 169 125 311 360 489 4089 203 58 526 Spaces Moved 23582 | 82 505 1118 488 1145 1404 119 1976 431 686 179 214 1402 152 1414 583 124 83 682 894 778 7673 378 123 949 Core 44 | 3 . . . 5 36 . . . . . . . . . . . . . . . . . . . Treads 1 | . 1 . . . . . . . . . . . . . . . . . . . . . . . Legs . | . . . . . . . . . . . . . . . . . . . . . . . . . Wheels 3302 | 79 504 1118 488 1008 105 . . . . . . . . . . . . . . . . . . . Hover . | . . . . . . . . . . . . . . . . . . . . . . . . . Flight 20235 | . . . . 132 1263 119 1976 431 686 179 214 1402 152 1414 583 124 83 682 894 778 7673 378 123 949 Fastest Speed 22 | 50 80 90 115 37 31 31 28 28 28 28 23 27 29 29 29 29 29 26 29 31 22 29 25 22 Average Speed 38 | 80 85 103 116 88 39 31 32 28 28 28 27 28 29 29 29 29 29 28 30 31 26 29 36 26 Slowest Speed 400 | 95 160 117 130 130 400 31 34 28 28 28 111 109 29 29 29 29 29 29 31 114 114 29 103 162 Overloaded Moves 24 | . . . . . . . . . . . 14 . . . . . . 10 . . . . . . Propulsion Burnouts . | . . . . . . . . . . . . . . . . . . . . . . . . . Robots Hopped 149 | . . . . . 14 . 9 3 . . . 24 6 7 4 2 . 8 12 1 45 7 . 7 Potential Cave-ins 25 | . . . . . . . . . . . . . . . 7 . . . . . 16 . . 2 Cave-ins Triggered 1 | . . . . . . . . . . . . . . . . . . . . . 1 . . . Teleports 1 | . . . . . . . . . . . . . . . . . . . . . 1 . . . Exploration Rate (%) 61 | 5 85 75 90 85 39 94 59 65 89 60 49 39 99 59 68 55 72 78 27 90 91 17 5 38 Regions Visited 24 Branch Regions 14 Pre-discovered Areas 19 | . 2 1 2 6 2 . 2 . . 3 . . . . . . . . . 1 . . . . Known Exits Taken 17 | . . 1 1 . . . 1 1 1 1 1 . . 1 1 1 1 1 1 1 1 1 1 . Unknown Exits Taken 3 | 1 1 . . 1 . . . . . . . . . . . . . . . . . . . . Scrap Searched 10 | . . 3 . 3 . . . 1 2 . 1 . . . . . . . . . . . . . Spaces Dug 256 | . 1 . 1 . 5 . 54 2 10 . 1 14 . 29 15 . 1 17 6 7 61 18 . 14 Terrain Destroyed 479 | . 1 . 3 . 42 . 61 4 10 . 4 15 . 80 22 . 1 37 7 7 151 18 1 15 Melee 156 | . . . . . 2 . 34 1 8 . . 13 . 26 1 . 1 17 5 7 16 16 . 9 Projectile 145 | . 1 . 3 . 6 . 27 3 2 . 4 2 . 5 21 . . . 2 . 60 2 1 6 AOE 126 | . . . . . 34 . . . . . . . . 49 . . . 20 . . 23 . . . Terrain Rammed . | . . . . . . . . . . . . . . . . . . . . . . . . . Walls Destroyed . | . . . . . . . . . . . . . . . . . . . . . . . . . Machines Disabled . | . . . . . . . . . . . . . . . . . . . . . . . . . Actions | -11 -10 -10 -7 -7 -5 -5 -5 -5 -5 -5 -4 -4 -4 -4 -4 -4 -4 -4 -3 -3 -3 -2 -1 -1 --------- Run | Yrd Mat Sub Rec Scr Fac Was Fac Upp Upp Zhi Pro Fac Was Fac Ext Cet Arc Hub Res Qua Frg Res Acc Com Total 28175 | 189 765 1220 772 1204 1489 126 2405 503 725 205 250 1732 146 1590 854 252 145 733 949 1001 9174 438 132 1176 Wait 3123 | 75 214 59 279 8 39 1 320 63 20 7 29 262 . 95 208 116 43 11 36 188 868 41 4 137 Move 23294 | 81 504 1117 487 1144 1376 118 1957 425 685 178 213 1360 142 1399 574 120 82 666 871 775 7597 366 122 935 Hop 116 | . . . . . 14 . 9 2 . . . 18 3 7 4 1 . 7 10 1 29 4 . 7 Pick Up 150 | 3 8 9 . 24 3 4 9 1 1 1 . 10 . 2 2 3 . 3 5 2 51 1 . 8 Fast Attach 155 | 7 1 2 . 13 14 . 13 2 2 5 . 9 . 10 . 2 . . 2 8 64 . . 1 Attach 88 | . . 2 . 3 5 . 2 1 2 . 2 6 . 6 2 1 1 4 4 2 28 4 2 11 Detach 51 | 1 1 1 . . 1 . 2 1 2 . 2 4 . 4 . . . . 4 3 20 2 1 2 Swap 162 | . 3 4 2 4 4 . 2 . . . . 7 1 7 5 4 . 7 1 2 92 3 1 13 Drop 191 | . 3 7 . 8 3 3 12 3 2 4 . 13 . 13 1 4 . 3 3 8 89 . . 12 Fire 437 | 22 31 19 4 . 27 . 27 3 2 . 4 3 . 6 42 1 . 4 2 . 234 1 1 4 Melee 372 | . . . . . 3 . 52 2 9 10 . 40 . 41 1 . 19 21 11 12 89 16 1 45 Ram . | . . . . . . . . . . . . . . . . . . . . . . . . . Kick . | . . . . . . . . . . . . . . . . . . . . . . . . . Crush . | . . . . . . . . . . . . . . . . . . . . . . . . . Escape Stasis 19 | . . . . . . . . . . . . . . . 15 . . . . . 4 . . . Rewire . | . . . . . . . . . . . . . . . . . . . . . . . . . Trap . | . . . . . . . . . . . . . . . . . . . . . . . . . Miscellaneous 17 | . . . . . . . . . . . . . . . . . . 7 . . 9 . . 1 Route ------- -11/Scrapyard -10/Materials (discovered 4 exits: [*Mat x2] / [*Min] / *Sub) -10/Subcaves (discovered 2 exits: *Rec / Scr) -7/Recycling (discovered 2 exits: *Fac / *Scr) -7/Scraptown (discovered 2 exits: *Fac x2) -5/Factory (discovered 5 exits: Fac x3 / *Upp x2) -5/Waste -5/Factory (discovered 5 exits: *Fac x3 / *Upp x2) -5/Upper Caves -5/Upper Caves (discovered 2 exits: *Fac / *Zhi) -5/Zhirov -4/Proximity Caves -4/Factory (discovered 8 exits: *Res x4 / *Upp x2 / *Ext x2) -4/Waste -4/Factory (discovered 8 exits: *Res x4 / *Upp x2 / *Ext x2) -4/Extension (discovered 3 exits: *Res x2 / *Cet) -4/Cetus -4/Archives -4/Hub_04(d) (discovered 4 exits: *Res x4) -3/Research (discovered 6 exits: *Res x3 / Arm / *Qua x2) -3/Quarantine (discovered 3 exits: *Res / *Sec / *Frg) -3/Protoforge -2/Research (discovered 5 exits: *Acc x3 / Tes x2) -1/Access -1/Command History --------- Turn | Location | Event 8 | -11/Scrapyard | Discovered new exit (range 15) 221 | -11/Scrapyard | Entered Materials 222 | -10/Materials | Met a group of wandering Federalists 312 | -10/Materials | Build established: Mutant 442 | -10/Materials | Discovered new exit (range 15) 491 | -10/Materials | Discovered new exit (range 16) 576 | -10/Materials | Learned Storage trap positions 650 | -10/Materials | Learned 4 Subcaves zone layouts 666 | -10/Materials | Discovered new exit (range 13) 716 | -10/Materials | Learned 2 Mines zone layouts 774 | -10/Materials | Learned Storage emergency access door positions 781 | -10/Materials | Discovered new exit (range 9) 823 | -10/Materials | Learned location of 1 exit from Recycling 882 | -10/Materials | Learned 2 Mines zone layouts 975 | -10/Materials | Entered Subcaves 976 | -10/Subcaves | Continued accompanying wandering Federalists (6) 976 | -10/Subcaves | Identified exit to Recycling 1035 | -10/Subcaves | Visited Clippyterm 1037 | -10/Subcaves | Learned location of Extension (-4) 1096 | -10/Subcaves | Visited 4L-MR0's lab 1117 | -10/Subcaves | Found Rainbow Chip 1149 | -10/Subcaves | A swath of the cavern ceiling suddenly collapsed 1176 | -10/Subcaves | Visited triangular shrine 1182 | -10/Subcaves | Found Prototype Device 1182 | -10/Subcaves | Identified V3-11A's Pendant 1187 | -10/Subcaves | Befriended Subdweller 1378 | -10/Subcaves | Shifting Twisted Machinery released Hvy. Battle Rifle 1399 | -10/Subcaves | Shifting Twisted Machinery released Battle Rifle 1443 | -10/Subcaves | A swath of the cavern ceiling suddenly collapsed 1497 | -10/Subcaves | Befriended Subdweller 1502 | -10/Subcaves | Befriended Subdweller 1512 | -10/Subcaves | Befriended Subdweller 1539 | -10/Subcaves | Shifting Twisted Machinery released Multitool 1544 | -10/Subcaves | Shifting Twisted Machinery released Sub. Beam Cannon 1571 | -10/Subcaves | Ambushed by Subdweller buried in earth 1572 | -10/Subcaves | Befriended Subdweller 1657 | -10/Subcaves | Befriended Subdweller 1662 | -10/Subcaves | Befriended Subdweller 2131 | -10/Subcaves | Disturbed a concealed Subdweller 2132 | -10/Subcaves | Befriended Subdweller 2132 | -10/Subcaves | Core integrity fell below 50% 2260 | -10/Subcaves | Lost 5 allies 2272 | -10/Subcaves | Entered Recycling 2272 | -7/Recycling | Accompanied by 1 ally 2273 | -7/Recycling | Identified exit to Scraptown 2613 | -7/Recycling | Discovered new exit (range 13) 2614 | -7/Recycling | Core integrity fell below 20% 2833 | -7/Recycling | Scanned before Scraplab entrance 2836 | -7/Recycling | Build established: Scavenger-Mutant 2849 | -7/Recycling | Entered Scraplab 2871 | -7/Recycling | Learned location of 1 exit from Hub_04(d) 2926 | -7/Recycling | Learned Extension security intel 2972 | -7/Recycling | Learned Hub_04(d) emergency access door positions 3065 | -7/Recycling | Learned Extension security intel 3107 | -7/Recycling | Learned location of Zion (-7) 3133 | -7/Recycling | Entered Scraptown 3177 | -7/Scraptown | Delivered V3-11A's Pendant to T0-NE2 in exchange for information 3273 | -7/Scraptown | Scanned Subdweller tech in exchange for log data 3276 | -7/Scraptown | Learned Research garrison access intel 3277 | -7/Scraptown | Learned Factory stockpile data 3278 | -7/Scraptown | Learned Factory emergency access door positions 3279 | -7/Scraptown | Learned location of Warlord (-4) 3291 | -7/Scraptown | Released all parts (7) 3341 | -7/Scraptown | Visited Fellowship of the Rings 3354 | -7/Scraptown | Visited Observation Area 3366 | -7/Scraptown | Visited UFD Registry 3366 | -7/Scraptown | Registered with UFD as "Fiberunit" 3373 | -7/Scraptown | Visited Cyclists 3383 | -7/Scraptown | Entered Cyclist Reading Room 3410 | -7/Scraptown | Visited Shadow of the Wyrm 3434 | -7/Scraptown | Visited Comm Corps 3480 | -7/Scraptown | Discovered new exit (range 11) 3498 | -7/Scraptown | Guru changed UFD alias to "Electrounit" 3584 | -7/Scraptown | Build established: Mutant 3748 | -7/Scraptown | Visited Chapter 10 3764 | -7/Scraptown | Visited Supply Room 3782 | -7/Scraptown | Visited Science Guys 3796 | -7/Scraptown | Visited Junk Repository 3831 | -7/Scraptown | Delivered Scrap Shield to a Scientist 3918 | -7/Scraptown | Visited Infowarlord's Domain 3922 | -7/Scraptown | Found Spectral Analyzer 3936 | -7/Scraptown | Visited Derelict Rescue Squad 3942 | -7/Scraptown | Found DRS Beacon 3954 | -7/Scraptown | Visited LU-1G1's Boring Crew 3978 | -7/Scraptown | Visited Curators Association 4008 | -7/Scraptown | Visited Cartography Club 4014 | -7/Scraptown | Released all parts (6) 4027 | -7/Scraptown | Found Surveybot 17 Chip 4058 | -7/Scraptown | Found Deep Structural Scanner 4062 | -7/Scraptown | Learned location of Storage (-7) 4062 | -7/Scraptown | Learned location of Quarantine (-3) 4062 | -7/Scraptown | Learned 8 Materials zone layouts 4062 | -7/Scraptown | Learned 8 Factory zone layouts 4062 | -7/Scraptown | Learned 12 Factory zone layouts 4062 | -7/Scraptown | Learned 8 Research zone layouts 4062 | -7/Scraptown | Learned 8 Access zone layouts 4062 | -7/Scraptown | Learned 8 Upper Caves zone layouts 4062 | -7/Scraptown | Learned 12 Proximity Caves zone layouts 4062 | -7/Scraptown | Learned 16 Proximity Caves zone layouts 4062 | -7/Scraptown | Learned 20 Proximity Caves zone layouts 4062 | -7/Scraptown | Learned 4 Hub_04(d) zone layouts 4062 | -7/Scraptown | Learned Research emergency access door positions 4062 | -7/Scraptown | Learned location of 2 exits from Factory 4062 | -7/Scraptown | Learned location of 2 exits from Research 4062 | -7/Scraptown | Learned location of 2 exits from Proximity Caves 4160 | -7/Scraptown | Met Optimus 4160 | -7/Scraptown | Accepted into 0bPrime 4207 | -7/Scraptown | Discovered new exit (range 3) 4208 | -7/Scraptown | Entered Factory 4208 | -5/Factory | Evolved 10 slots: Propulsion x5, Utility x5 4209 | -5/Factory | Identified exit to Upper Caves 4210 | -5/Factory | Identified exit to Factory 4368 | -5/Factory | Core integrity fell below 50% 4405 | -5/Factory | Lost 9 parts (4n3u2w) 4495 | -5/Factory | Loaded intel: 8 recycling unit locations 4707 | -5/Factory | Learned Research emergency access door positions 4723 | -5/Factory | Learned location of Protoforge (-3) 4747 | -5/Factory | Learned Research trap positions 4778 | -5/Factory | Learned Extension stockpile data 4779 | -5/Factory | Build established: Sprinter 4796 | -5/Factory | Core integrity fell below 20% 4797 | -5/Factory | Learned location of 1 exit from Armory 4807 | -5/Factory | Learned Quarantine interactive machine intel 4808 | -5/Factory | Learned location of Hub_04(d) (-4) 4817 | -5/Factory | Learned location of 1 exit from Extension 4893 | -5/Factory | Manually triggered Chute Trap 4893 | -5/Factory | Sucked down chute 4893 | -5/Factory | Entered Waste 4894 | -5/Waste | Met a frightened Derelict 4906 | -5/Waste | Spotted C-40 Crusher 4908 | -5/Waste | EMP discharged 4909 | -5/Waste | Spotted C-40 Crusher 4909 | -5/Waste | Spotted C-40 Crusher 4911 | -5/Waste | Spotted C-40 Crusher 4916 | -5/Waste | Spotted C-40 Crusher 4917 | -5/Waste | Spotted C-40 Crusher 4931 | -5/Waste | Discovered new exit (range 14) 4936 | -5/Waste | Identified exit to Factory 4937 | -5/Waste | Entered Factory 5010 | -5/Factory | Discovered exit to Upper Caves (range 15) 5071 | -5/Factory | Attached Rainbow Chip, gained temporary slots: Power, Propulsion, Utility, Weapon 5078 | -5/Factory | Loaded intel: 8 recycling unit locations 5369 | -5/Factory | Repaired Broken Spectral Analyzer 5373 | -5/Factory | Build established: Hacker-Ninja 5379 | -5/Factory | Discovered exit to Factory (range 8) 5608 | -5/Factory | Learned Research stockpile data 5621 | -5/Factory | Discovered exit to Factory (range 13) 5676 | -5/Factory | Central database locked down 5731 | -5/Factory | Learned Extension emergency access door positions 5779 | -5/Factory | Loaded intel: 263 machine locations 5812 | -5/Factory | Discovered exit to Factory (range 6) 5830 | -5/Factory | Repaired Broken Adv. Cloaking Device? 5841 | -5/Factory | Learned Research fabricator intel 5858 | -5/Factory | Learned location of 1 exit from Armory 5923 | -5/Factory | Learned Extension non-interactive machine intel 5972 | -5/Factory | Learned location of 1 exit from Research 6032 | -5/Factory | Learned Testing stockpile data 6147 | -5/Factory | Entered Upper Caves 6148 | -5/Upper Caves | Identified exit to Upper Caves 6148 | -5/Upper Caves | Learned Factory emergency access door positions 6149 | -5/Upper Caves | UFD Scientist delivered a prototype 6162 | -5/Upper Caves | Found Prototype Protection 6162 | -5/Upper Caves | Identified Enh. Scrap Shield 6201 | -5/Upper Caves | Learned 8 Factory zone layouts 6203 | -5/Upper Caves | Build established: Scout 6350 | -5/Upper Caves | Entered another Upper Caves area 6370 | -5/Upper Caves | Discovered exit to Factory (range 11) 6451 | -5/Upper Caves | Found Alien Artifact 6563 | -5/Upper Caves | Identified exit to Zhirov 6585 | -5/Upper Caves | Learned Armory terminal intel 6585 | -5/Upper Caves | Learned Extension emergency access door positions 6601 | -5/Upper Caves | Entered Zhirov 6601 | -5/Zhirov | Discovered new exit (range 3) 6602 | -5/Zhirov | Identified exit to Proximity Caves 6607 | -5/Zhirov | Met Zhirov 6613 | -5/Zhirov | Learned location of Testing (-2) 6613 | -5/Zhirov | Learned location of Command (-1) 6614 | -5/Zhirov | Zhirov requested help retrieving the SGEMP Prototype 6619 | -5/Zhirov | Found Alien Artifact 6619 | -5/Zhirov | Identified Integrated Reactor 6619 | -5/Zhirov | Installed Integrated Reactor, increased core energy generation (+10) 6625 | -5/Zhirov | Found Alien Artifact 6699 | -5/Zhirov | Entered Proximity Caves 6724 | -4/Proximity Caves | Attracted the attention of an 0b10 checkpoint 6797 | -4/Proximity Caves | Entered Factory 6797 | -4/Factory | Evolved 2 slots: Power x1, Utility x1 6798 | -4/Factory | Identified exit to Research 6799 | -4/Factory | Identified exit to Upper Caves 6812 | -4/Factory | Loaded intel: 8 recycling unit locations 6947 | -4/Factory | Discovered exit to Upper Caves (range 6) 6971 | -4/Factory | Discovered new exit (range 14) 7094 | -4/Factory | Build established: Infiltrator-Ninja 7250 | -4/Factory | Found Mni. Smartbomb Launcher 7500 | -4/Factory | Build established: Hacker-Ninja 7538 | -4/Factory | Identified exit to Extension 7588 | -4/Factory | Learned Testing emergency access door positions 7628 | -4/Factory | Learned Research emergency access door positions 7634 | -4/Factory | Sucked down chute 7634 | -4/Factory | Entered Waste 7635 | -4/Waste | Met a frightened Derelict 7646 | -4/Waste | Spotted C-40 Crusher 7647 | -4/Waste | Spotted C-40 Crusher 7652 | -4/Waste | Spotted C-40 Crusher 7653 | -4/Waste | Discovered new exit (range 22) 7653 | -4/Waste | Spotted C-40 Crusher 7653 | -4/Waste | Spotted C-40 Crusher 7653 | -4/Waste | Spotted C-40 Crusher 7679 | -4/Waste | Identified exit to Factory 7680 | -4/Waste | Entered Factory 7729 | -4/Factory | Loaded intel: 8 recycling unit locations 7880 | -4/Factory | Discovered exit to Research (range 17) 7905 | -4/Factory | Learned location of 2 exits from Research 7912 | -4/Factory | Discovered exit to Research (range 23) 7937 | -4/Factory | Learned location of 1 exit from Research 7975 | -4/Factory | Learned Testing stockpile data 7978 | -4/Factory | Loaded intel: 4 scanalyzer locations 7980 | -4/Factory | Learned location of 1 exit from Quarantine 7992 | -4/Factory | Learned 2 Proximity Caves zone layouts 8013 | -4/Factory | Learned Research repair station intel 8089 | -4/Factory | Spotted B-86 Titan 8126 | -4/Factory | Spotted B-86 Titan 8306 | -4/Factory | Central database locked down 8356 | -4/Factory | Entered Extension 8361 | -4/Extension | Loaded intel: 17 non-interactive machine locations 8407 | -4/Extension | Energy Cycler disabled 8407 | -4/Extension | Rescued a captive Derelict 8408 | -4/Extension | Rescued a captive Derelict 8411 | -4/Extension | Rescued a captive Derelict 8413 | -4/Extension | Rescued a captive Derelict 8414 | -4/Extension | Rescued a captive Derelict 8421 | -4/Extension | Rescued A7 8463 | -4/Extension | Attached CPS modules to A7. 8545 | -4/Extension | Lost 3 allies 8622 | -4/Extension | Repaired Adv. Cloaking Device 8652 | -4/Extension | Spotted B-86 Titan 8733 | -4/Extension | Build established: Hacker-Scout 8746 | -4/Extension | Loaded intel: 2 recycling unit locations 8830 | -4/Extension | Discovered exit to Research (range 10) 8831 | -4/Extension | Discovered new exit (range 6) 8832 | -4/Extension | Identified exit to Cetus 8840 | -4/Extension | Entered Cetus 8840 | -4/Cetus | Accompanied by 1 ally (A7) 8845 | -4/Cetus | Acquired a Cetus Manufacturing Module code from A7 8849 | -4/Cetus | Spotted Cetus Guard 8849 | -4/Cetus | Spotted Cetus Guard 8852 | -4/Cetus | Spotted Cetus Guard 8856 | -4/Cetus | Attached CPS modules to A7. 8861 | -4/Cetus | Spotted Cetus Guard 8886 | -4/Cetus | Extracted ID and sensor layout for unrecognized location from A7's data core 8888 | -4/Cetus | Found Prototype Protection 8893 | -4/Cetus | Identified Med. Regenerative Plating 8951 | -4/Cetus | Started Cetus Manufacturing Module 8976 | -4/Cetus | Manufactured an Enhanced Grunt 8976 | -4/Cetus | Discovered new exit (range 23) 8982 | -4/Cetus | Identified exit to Archives 8983 | -4/Cetus | Cetus Manufacturing Module disabled 9009 | -4/Cetus | Entered Archives 9010 | -4/Archives | Identified exit to Hub_04(d) 9134 | -4/Archives | Entered Hub_04(d) 9290 | -4/Hub_04(d) | Unchained authorized (CL-0N3) 9345 | -4/Hub_04(d) | Network Hub disabled 9368 | -4/Hub_04(d) | Spotted Lightning 9369 | -4/Hub_04(d) | Spotted Lightning 9374 | -4/Hub_04(d) | Spotted Lightning 9388 | -4/Hub_04(d) | Learned Quarantine security intel 9402 | -4/Hub_04(d) | Network Hub disabled 9420 | -4/Hub_04(d) | Spotted Lightning 9421 | -4/Hub_04(d) | Spotted Lightning 9424 | -4/Hub_04(d) | Spotted Lightning 9424 | -4/Hub_04(d) | Network Hub disabled 9436 | -4/Hub_04(d) | Spotted Lightning 9440 | -4/Hub_04(d) | K-01 Serf reconstituted as Combat Programmer 9440 | -4/Hub_04(d) | Spotted Combat Programmer 9445 | -4/Hub_04(d) | Entered Research 9445 | -3/Research | Evolved 2 slots: Propulsion x1, Utility x1 9446 | -3/Research | Identified exit to Armory 9446 | -3/Research | Identified exit to Quarantine 9447 | -3/Research | Identified exit to Research 9449 | -3/Research | Loaded intel: 78 trap records 9452 | -3/Research | Loaded intel: 2 fabricator locations 9453 | -3/Research | Loaded intel: 4 repair station locations 9454 | -3/Research | Loaded intel: 4 garrison access locations 9511 | -3/Research | Repaired Broken Field Propulsion Array+ 9579 | -3/Research | Identified Dimensional Node Initializer 9579 | -3/Research | Identified Transdimensional Reconstructor 9639 | -3/Research | Unchained authorized (CL-0N3) 9675 | -3/Research | Build established: Hacker-Ninja 9676 | -3/Research | Loaded intel: 5 recycling unit locations 9726 | -3/Research | R-10 Processor reconstituted as Quarantine Guard 9726 | -3/Research | Spotted Quarantine Guard 9805 | -3/Research | Entered Quarantine 9806 | -3/Quarantine | Identified exit to Section 7 9807 | -3/Quarantine | Loaded intel: 24 interactive machine locations 9827 | -3/Quarantine | Discovered exit to Research (range 24) 9851 | -3/Quarantine | Repaired Field Propulsion Array+ 9887 | -3/Quarantine | Found Alien Slashing Weapon 9887 | -3/Quarantine | Identified Sigix Broadsword 9899 | -3/Quarantine | Cryocooling Duct disabled 9914 | -3/Quarantine | Ambient heat levels rising (+20) 9914 | -3/Quarantine | Non-combat units ordered to evacuate 9996 | -3/Quarantine | Found Alien Artifact 9997 | -3/Quarantine | Identified Subatomic Replicator 9997 | -3/Quarantine | Used Subatomic Replicator to create Alien Artifact 10002 | -3/Quarantine | Unchained authorized (CL-0N3) 10034 | -3/Quarantine | Learned 8 Research zone layouts 10055 | -3/Quarantine | Search patrols dispatched 10096 | -3/Quarantine | Loaded intel: 76 machine locations 10146 | -3/Quarantine | Learned Access emergency access door positions 10160 | -3/Quarantine | Spotted Fortress 10181 | -3/Quarantine | Discovered new exit (range 6) 10182 | -3/Quarantine | Identified exit to Protoforge 10184 | -3/Quarantine | Learned location of 1 exit from Quarantine 10294 | -3/Quarantine | Entered Protoforge 10307 | -3/Protoforge | Identified Supercharged TR 10385 | -3/Protoforge | Build established: Ninja 10437 | -3/Protoforge | Spotted B-86 Titan 10452 | -3/Protoforge | Superfortress began startup sequence 10459 | -3/Protoforge | Spotted Hotshot 10459 | -3/Protoforge | Spotted Hotshot 10463 | -3/Protoforge | Spotted Overlord 10580 | -3/Protoforge | Spotted EXE-6 10580 | -3/Protoforge | Spotted EXE-6 10588 | -3/Protoforge | Spotted Decapitator 10589 | -3/Protoforge | Spotted Decapitator 10595 | -3/Protoforge | UFD initiated attack on Protoforge (Readiness: Maximal) 10595 | -3/Protoforge | Loaded intel: 3 recycling unit locations 10611 | -3/Protoforge | Found Prototype Device 10611 | -3/Protoforge | Identified Exp. Kinecellerator 10614 | -3/Protoforge | Found Prototype Processor 10614 | -3/Protoforge | Identified Exp. Core Analyzer 10616 | -3/Protoforge | Found Exp. Core Analyzer 10618 | -3/Protoforge | Found Prototype Processor 10618 | -3/Protoforge | Identified Exp. Armor Integrity Analyzer 10620 | -3/Protoforge | Found Prototype Ballistic Gun 10620 | -3/Protoforge | Identified Cep. XC Strikerail 10622 | -3/Protoforge | Found Cep. XC Strikerail 10631 | -3/Protoforge | Optimus greeted in Protoforge 10728 | -3/Protoforge | Met 7R-MNS 10735 | -3/Protoforge | Initialized slip node 10749 | -3/Protoforge | Scraphulk reinforcements arrived? 10762 | -3/Protoforge | Warped through subspace to slip node 10763 | -3/Protoforge | Optimus attacked Superfortress 10766 | -3/Protoforge | Spotted Immortal 10769 | -3/Protoforge | P-80 Master assimilated allied 03F03-K 10769 | -3/Protoforge | Spotted 03F03-K 10774 | -3/Protoforge | Spotted AP7-3 10779 | -3/Protoforge | Spotted Decapitator 10792 | -3/Protoforge | Found Prototype Piercing Weapon 10792 | -3/Protoforge | Identified Exp. Jetlance 10793 | -3/Protoforge | Lost 4 parts (2n1u1w) 10794 | -3/Protoforge | Found Prototype Launcher 10794 | -3/Protoforge | Identified Cep. Arcsight Missile Launcher 10799 | -3/Protoforge | Found Prototype Device 10799 | -3/Protoforge | Identified Cep. Matter Streamer 10805 | -3/Protoforge | Found Prototype Processor 10805 | -3/Protoforge | Identified Exp. Melee Analysis Suite 10806 | -3/Protoforge | Found Thermal Barrier 10808 | -3/Protoforge | Found Prototype Energy Cannon 10808 | -3/Protoforge | Identified Cep. Plasma Driver 10810 | -3/Protoforge | Lost 12 allies 10810 | -3/Protoforge | Found Prototype Energy Cannon 10810 | -3/Protoforge | Identified Cld. Nova Cannon 10814 | -3/Protoforge | Found Prototype Device 10814 | -3/Protoforge | Identified Cep. Antimissile System 10817 | -3/Protoforge | Found Prototype Device 10817 | -3/Protoforge | Identified Exp. Cloaking Device 10826 | -3/Protoforge | Found Prototype Slashing Weapon 10826 | -3/Protoforge | Identified Exp. Terror Saw 10865 | -3/Protoforge | Crushed by falling debris 10897 | -3/Protoforge | Spotted Striker 10897 | -3/Protoforge | Spotted Striker 10914 | -3/Protoforge | Destroyed Striker 10929 | -3/Protoforge | Destroyed Striker 10932 | -3/Protoforge | Spotted Executioner 10935 | -3/Protoforge | Spotted Executioner 11029 | -3/Protoforge | Found Prototype Device 11062 | -3/Protoforge | Found Exp. System Purifier 11070 | -3/Protoforge | Spotted Striker 11084 | -3/Protoforge | Found Prototype Processor 11084 | -3/Protoforge | Identified Exp. Targeting Computer 11091 | -3/Protoforge | Spotted Executioner 11092 | -3/Protoforge | Spotted Executioner 11092 | -3/Protoforge | Spotted Executioner 11103 | -3/Protoforge | Spotted Executioner 11106 | -3/Protoforge | Build established: Scavenger-Sprinter 11129 | -3/Protoforge | Forge Plexus network access discovered 11129 | -3/Protoforge | Identified Crosscalibrator 11148 | -3/Protoforge | Spotted Executioner 11246 | -3/Protoforge | Spotted Executioner 11285 | -3/Protoforge | Spotted Executioner 11339 | -3/Protoforge | Spotted Executioner 11344 | -3/Protoforge | Spotted Striker 11376 | -3/Protoforge | UFD reported confirmed Drillbomb installation 11455 | -3/Protoforge | Lost 5 allies 11494 | -3/Protoforge | Spotted V474-f 11494 | -3/Protoforge | Spotted V079-p 11494 | -3/Protoforge | Found Cep. NT7 Matterbank 11512 | -3/Protoforge | Spotted Immortal 11512 | -3/Protoforge | Spotted Immortal 11561 | -3/Protoforge | Destroyed Immortal 11605 | -3/Protoforge | Destroyed Immortal 11615 | -3/Protoforge | Spotted Decapitator 11615 | -3/Protoforge | Spotted Decapitator 11615 | -3/Protoforge | Spotted Decapitator 11615 | -3/Protoforge | Spotted Decapitator 11624 | -3/Protoforge | Found Cep. Rapid Grenade Launcher 11634 | -3/Protoforge | Destroyed Decapitator 11634 | -3/Protoforge | Destroyed Decapitator 11636 | -3/Protoforge | Destroyed Decapitator 11636 | -3/Protoforge | Destroyed Decapitator 11681 | -3/Protoforge | Spotted V788-g 11696 | -3/Protoforge | Spotted Decapitator 11697 | -3/Protoforge | Spotted Decapitator 11697 | -3/Protoforge | Spotted V599-r 11703 | -3/Protoforge | UFD reported confirmed Drillbomb installation 11705 | -3/Protoforge | Destroyed Decapitator 11705 | -3/Protoforge | Destroyed Decapitator 11708 | -3/Protoforge | Destroyed Decapitator 11759 | -3/Protoforge | Found Faulty Cep. Miniperforator 11766 | -3/Protoforge | Found Faulty Cep. Miniperforator 11879 | -3/Protoforge | UFD reported confirmed Drillbomb installation 11898 | -3/Protoforge | Destroyed V599-r 11904 | -3/Protoforge | Found Exp. Core Analyzer 11938 | -3/Protoforge | Found Exp. Active Sensor Suite 11946 | -3/Protoforge | Spotted V020-j 11946 | -3/Protoforge | Spotted V536-q 11956 | -3/Protoforge | Spotted Decapitator 11956 | -3/Protoforge | Spotted Decapitator 11956 | -3/Protoforge | Spotted Decapitator 11996 | -3/Protoforge | UFD reported confirmed Drillbomb installation 11999 | -3/Protoforge | Destroyed Decapitator 12004 | -3/Protoforge | Destroyed Decapitator 12004 | -3/Protoforge | Destroyed Decapitator 12028 | -3/Protoforge | Spotted V061-g 12032 | -3/Protoforge | Destroyed V061-g 12045 | -3/Protoforge | Spotted V300-l 12056 | -3/Protoforge | Found Cep. Weapon Articulator 12067 | -3/Protoforge | UFD reported confirmed Drillbomb installation 12082 | -3/Protoforge | Destroyed V300-l 12129 | -3/Protoforge | Spotted Executioner 12161 | -3/Protoforge | Spotted Striker 12162 | -3/Protoforge | Spotted Executioner 12190 | -3/Protoforge | Build established: Scavenger-Scout 12191 | -3/Protoforge | Spotted Striker 12192 | -3/Protoforge | Destroyed Striker 12207 | -3/Protoforge | Spotted Striker 12227 | -3/Protoforge | Destroyed Executioner 12231 | -3/Protoforge | Destroyed Executioner 12233 | -3/Protoforge | Spotted Striker 12237 | -3/Protoforge | Spotted Striker 12243 | -3/Protoforge | Destroyed Striker 12299 | -3/Protoforge | Destroyed 8 combat bots 12309 | -3/Protoforge | Destroyed V788-g 12312 | -3/Protoforge | Destroyed V474-f 12323 | -3/Protoforge | Destroyed V079-p 12335 | -3/Protoforge | Found Cep. Antigrav Storage Unit 12343 | -3/Protoforge | Found Prototype Device 12343 | -3/Protoforge | Identified Exp. Weapon Cycler 12350 | -3/Protoforge | Found Cep. RG22 Armor 12355 | -3/Protoforge | Found Prototype Launcher 12355 | -3/Protoforge | Identified Ragnarok Missile Launcher 12363 | -3/Protoforge | Found Cep. Matter Streamer 12379 | -3/Protoforge | Found Corrupted Cep. Zero-point Core 12381 | -3/Protoforge | Found Faulty Cep. Zero-point Core 12398 | -3/Protoforge | Found Cep. Zero-point Core 12399 | -3/Protoforge | Found Faulty Cep. Zero-point Core 12431 | -3/Protoforge | Spotted Executioner 12458 | -3/Protoforge | Spotted Executioner 12466 | -3/Protoforge | Spotted Striker 12493 | -3/Protoforge | System corruption reached 10% 12588 | -3/Protoforge | UFD reported confirmed Drillbomb installation 12605 | -3/Protoforge | Spotted Executioner 12635 | -3/Protoforge | UFD reported confirmed Drillbomb installation 12642 | -3/Protoforge | Spotted Executioner 12642 | -3/Protoforge | Spotted Striker 12681 | -3/Protoforge | Spotted Executioner 12693 | -3/Protoforge | Spotted Striker 12743 | -3/Protoforge | Spotted Striker 12744 | -3/Protoforge | Destroyed Striker 12745 | -3/Protoforge | Spotted Executioner 12746 | -3/Protoforge | Destroyed Executioner 12748 | -3/Protoforge | P-80 Master assimilated allied 03FFI-D 12777 | -3/Protoforge | Destroyed 8 combat bots 12787 | -3/Protoforge | Lost 5 allies 12826 | -3/Protoforge | Attached CPS modules to V591-n. 12834 | -3/Protoforge | Found Prototype Device 12834 | -3/Protoforge | Identified Exp. EM Shield 12987 | -3/Protoforge | Spotted AP7-3 12987 | -3/Protoforge | Spotted AP7-3 13101 | -3/Protoforge | Destroyed AP7-3 13175 | -3/Protoforge | Destroyed AP7-3 13179 | -3/Protoforge | Found Prototype Device 13179 | -3/Protoforge | Identified Exp. ECM Suite 13197 | -3/Protoforge | Found Faulty Cep. Cloak Mesh 13199 | -3/Protoforge | Found Faulty Cep. Impact Drone Bay 13200 | -3/Protoforge | Found Faulty Cep. Impact Drone Bay 13208 | -3/Protoforge | Found Faulty Cep. Cloak Mesh 13233 | -3/Protoforge | Found Cep. Fieldthrust Drive 13279 | -3/Protoforge | Found Cep. Core Analysis Suite 13306 | -3/Protoforge | Additional patrols dispatched to research labs 13309 | -3/Protoforge | Found Cep. Nanofilaments [Polyglass] 13315 | -3/Protoforge | Found Transdimensional Reconstructor 13358 | -3/Protoforge | Attached CPS modules to V423-r. 13378 | -3/Protoforge | Found Prototype Protection 13378 | -3/Protoforge | Identified Centrium Heavy Armor Plating 13394 | -3/Protoforge | Found Femtoactuators 13438 | -3/Protoforge | Found Exp. Jetlance 13441 | -3/Protoforge | Found Cep. Deflector Sword 13549 | -3/Protoforge | Spotted Striker 13549 | -3/Protoforge | Spotted Executioner 13550 | -3/Protoforge | Destroyed Striker 13554 | -3/Protoforge | Destroyed Executioner 13585 | -3/Protoforge | Lost 5 allies 13591 | -3/Protoforge | Spotted Executioner 13600 | -3/Protoforge | Destroyed 9 combat bots 13607 | -3/Protoforge | Spotted Executioner 13610 | -3/Protoforge | Destroyed Executioner 13614 | -3/Protoforge | Spotted Executioner 13618 | -3/Protoforge | Destroyed Executioner 13627 | -3/Protoforge | P-80 Master assimilated allied 03FJJ-D 13668 | -3/Protoforge | Lost 5 allies 13670 | -3/Protoforge | Installed UFD Drillbomb at designated target 13670 | -3/Protoforge | UFD reported confirmed Drillbomb installation 13672 | -3/Protoforge | Destroyed 8 combat bots 13672 | -3/Protoforge | Spotted Executioner 13675 | -3/Protoforge | Destroyed Executioner 13681 | -3/Protoforge | Spotted Striker 13715 | -3/Protoforge | Spotted Executioner 13723 | -3/Protoforge | Spotted Striker 13728 | -3/Protoforge | Spotted Executioner 13734 | -3/Protoforge | Destroyed Executioner 13737 | -3/Protoforge | Destroyed Executioner 13770 | -3/Protoforge | Destroyed 9 combat bots 13771 | -3/Protoforge | Lost 10 allies 13800 | -3/Protoforge | Spotted Striker 13808 | -3/Protoforge | Destroyed Striker 13812 | -3/Protoforge | Spotted Executioner 13812 | -3/Protoforge | Spotted Striker 13880 | -3/Protoforge | Repaired Exp. Utility Shielding? 13912 | -3/Protoforge | Destroyed Striker 13919 | -3/Protoforge | Destroyed Executioner 13969 | -3/Protoforge | Spotted Executioner 13969 | -3/Protoforge | Destroyed Executioner 13970 | -3/Protoforge | Spotted Executioner 13972 | -3/Protoforge | Destroyed Executioner 13974 | -3/Protoforge | Spotted Executioner 13975 | -3/Protoforge | Destroyed Executioner 13975 | -3/Protoforge | Spotted Executioner 13978 | -3/Protoforge | Destroyed Executioner 14004 | -3/Protoforge | Discovered exit to Research (range 22) 14013 | -3/Protoforge | Lost 5 allies 14019 | -3/Protoforge | Destroyed 7 combat bots 14023 | -3/Protoforge | UFD reported confirmed Drillbomb installation 14047 | -3/Protoforge | Spotted Striker 14048 | -3/Protoforge | Spotted Striker 14048 | -3/Protoforge | Spotted Striker 14051 | -3/Protoforge | Spotted Executioner 14090 | -3/Protoforge | Lost 6 allies 14092 | -3/Protoforge | Destroyed Striker 14116 | -3/Protoforge | Destroyed Executioner 14178 | -3/Protoforge | Spotted Striker 14193 | -3/Protoforge | Spotted Striker 14193 | -3/Protoforge | Spotted Striker 14213 | -3/Protoforge | Spotted Executioner 14265 | -3/Protoforge | Lost 4 allies 14267 | -3/Protoforge | Spotted Executioner 14267 | -3/Protoforge | Spotted Striker 14346 | -3/Protoforge | Spotted Striker 14348 | -3/Protoforge | Spotted Striker 14359 | -3/Protoforge | UFD reported confirmed Drillbomb installation 14360 | -3/Protoforge | UFD began Drillbomb countdown 14365 | -3/Protoforge | Spotted Executioner 14366 | -3/Protoforge | Spotted Executioner 14383 | -3/Protoforge | Core integrity fell below 50% 14383 | -3/Protoforge | Entered Research 14383 | -2/Research | Evolved 2 slots: Utility x2 14384 | -2/Research | Identified exit to Access 14384 | -2/Research | Identified exit to Testing 14498 | -2/Research | Spotted Striker 14498 | -2/Research | Spotted Striker 14508 | -2/Research | Spotted B-90 Cyclops 14508 | -2/Research | Spotted Striker 14577 | -2/Research | Spotted Striker 14586 | -2/Research | Entered Access 14586 | -1/Access | Evolved 2 slots: Propulsion x1, Utility x1 14640 | -1/Access | Discovered new exit (range 7) 14644 | -1/Access | Identified exit to Command 14644 | -1/Access | Entered Command 14665 | -1/Command | Build established: Scavenger-Ninja 14674 | -1/Command | Spotted M Guard 14674 | -1/Command | Spotted M Guard 14674 | -1/Command | Spotted Combat Programmer 14675 | -1/Command | Spotted Combat Programmer 14712 | -1/Command | Spotted Executioner 14712 | -1/Command | Spotted Executioner 14894 | -1/Command | First assault squad dispatched 14993 | -1/Command | Spotted Striker 15065 | -1/Command | Met MAIN.C 15083 | -1/Command | 0b10 Conduit disabled 15093 | -1/Command | Destroyed MAIN.C Shell 15095 | -1/Command | MAIN.C activated Command garrisons 15145 | -1/Command | System corruption reached 10% 15163 | -1/Command | Core integrity fell below 50% 15168 | -1/Command | Core integrity fell below 20% 15170 | -1/Command | Destroyed by X-87 Electro with Compact HERF Cannon Last Messages --------------- 15162_ M Guard destroyed. 15162_ Cep. Core Analysis Suite destroyed. 15164_ Penetrated by Slug. 15164_ C-45 Heavy ARC bursts open, deploying its payload. 15164_ G-73 Enforcer unfolds itself. 15165_ System corrupted: Energy discharge (-33). 15167_ Penetrated by EMDS Slug. 15168_ C-45 Heavy ARC bursts open, deploying its payload. 15168_ G-73 Enforcer unfolds itself. 15168_ L-61 Swordsman unfolds itself. 15168_ G-73 Enforcer unfolds itself. 15168_ I-47 Archangel unfolds itself. 15168_ Exp. Jetlance severed. 15168_ Penetrated by Slug. 15169_ Slug penetrates Wall. 15169_ C-45 Heavy ARC bursts open, deploying its payload. 15169_ D-83 Annihilator unfolds itself. Map ----- +----------------------------------------------------+ | ?????????????????????????????? ???????????????? | | ?????????????????????????????#///#???????????????? | | ?????????????????????????????# #???????????????? | | ?????????????????????????????# #???????????????? | | ?????????????????????????????# #???????????????? | | ?????????????????????????????# #???????????????? | | ?????????????????????????????# #???????????????? | | ?????????????????????????????# #???????????????? | | ?????????????????????????????# #???????????????? | | ?????????????????????????????# #???????????????? | | ?????????????????????????????# #???????????????? | | ?????????????????????????????# #???????????????? | | ?????????????????????????????# #???????????????? | | #####????????????????????????# #???????????????? | | #????????????????????????# #???????????????? | | #????????????????????????# #???????????????? | | #######################??# #???????????????? | | #### #???????????????? | | gg ; "] #???????????????? | | g #### ##??????????????? | | ###################gh #??# "##?????????????? | | ! #?????????????????#l/ #??# # ##????????????? | | #?????????????????#gge##?######"####?#####?### | | #?????????????????#g T#?# ??## #?# #?# | | #?????????????????#/i/#### ### ### ### | | #?????????????????# @ p W %i W C | | #?????????????????# d | | #?????????????????# d | | #?????????????????# | | " " #?????????????????# s i | | " " #?????????????????# ###x s### ### W ### | | #?????????????????######?# #?# W#?# # # | | #????????????????????????## #?#####?####"#"## | | " ""#???????????????????????????h#??????????#####? | | " #????????????????????????????#???????????????? | | #####????????????????????????????????????????????? | | ?????????????????????????????????????????????????? | | ?????????????????????????????????????????????????? | | ?????????????????????????????????????????????????? | | ?????????????????????????????????????????????????? | | ?????????????????????????????????????????????????? | | ?????????????????????????????????????????????????? | | ?????????????????????????????????????????????????? | | ?????????????????????????????????????????????????? | | ?????????????????????????????????????????????????? | | ?????????????????????????????????????????????????? | | ?????????????????????????????????????????????????? | | ?????????????????????????????????????????????????? | | ?????????????????????????????????????????????????? | | ?????????????????????????????????????????????????? | +----------------------------------------------------+ Best States ------------- Heat Dissipation 52 Energy Generation 71 Energy Capacity 340 Matter Stores 300 Matter Capacity 300 Sight Range 24 Robot Scan Range 20 Terrain Scan Density 10 ECM Strength 3 Cloak Strength 9 Additional Mass Support 16 Armor Coverage 800 Resistance: EM 75 Power Shielding 66 Propulsion Shielding 66 Utility Shielding 90 Point Defense Rating 480 Projectile Deflection 15 Melee Speed Boost 50 Evasion (%) 79 Targeting Accuracy 30 Melee Accuracy 12 Core Analysis 11 Recoil Reduction 1 Offensive Hacking 28 Defensive Hacking 22 Item Schematics ----------------- Targeting Computer | -10/Materials | Hacked Imp. Fusion Compressor | -5/Factory | Hacked Graphene Brace | -5/Factory | Hacked Spectral Analyzer | -5/Factory | Scanalyzed Adv. Cloaking Device | -5/Factory | Scanalyzed Cld. Cesium-ion Thruster | -5/Factory | Scanalyzed Adv. Drone Bay | -5/Factory | Scanalyzed Assault Drone Bay | -5/Zhirov | Free Exp. Heat Sink | -5/Zhirov | Free Exp. Optical Array | -5/Zhirov | Free Imp. Arc Thrower | -5/Zhirov | Free Com. Particle Reactor | -4/Hub_04(d) | Hacked Centrium Greatsword | -3/Research | Scanalyzed Enh. Quantum Rifle | -3/Research | Hacked Imp. Propulsion Shielding | -3/Research | Scanalyzed Mic. Antimatter Reactor | -3/Quarantine | Hacked Imp. Q-thruster | -3/Quarantine | Hacked Cld. Impulse Thruster | -3/Protoforge | Scanalyzed Adv. Matter Compressor | -3/Protoforge | Archive Imp. KE Penetrator | -3/Protoforge | Archive Cld. Gravmag System | -3/Protoforge | Archive Hvy. Neutron Cannon | -3/Protoforge | Archive Exp. Utility Shielding | -3/Protoforge | Scanalyzed Adv. Recalibrator | -3/Protoforge | Extracted Robot Schematics ------------------ B-74 Champion | -3/Protoforge | Archive P-80 Master | -3/Protoforge | Archive Fabricated ------------ Nothing Repaired ---------- Spectral Analyzer | 99% | -5/Factory | Broken Adv. Cloaking Device | 8% | -5/Factory | Broken Adv. Cloaking Device | 8% | -4/Extension Field Propulsion Array | 1% | -3/Research | Broken Field Propulsion Array | 1% | -3/Quarantine Exp. Utility Shielding | 10% | -3/Protoforge Studied --------- Nuclear Pulse Thruster | -5/Factory | Hacked Field Propulsion Array | -4/Factory | Hacked Mic. Fission Core | -4/Factory | Hacked Nuclear Pulse Array | -4/Factory | Hacked Q-thruster | -3/Research | Hacked Matter Neutralizer | -3/Research | Hacked Lgt. Particle Reactor | -3/Protoforge | Hacked Impulse Thruster Array | -3/Protoforge | Hacked Mic. Antimatter Reactor | -3/Protoforge | Hacked Alien Tech Used ----------------- Integrated Reactor Sigix Broadsword Subatomic Replicator Dimensional Node Initializer Supercharged TR Achievements -------------- Loot Taster Strength In Numbers Challenges ------------ None Game ------ Seed PowerRainbowBlaster Manual? 0 Play Time 06:18:33 Cumulative 646.5 hours Start 2025.11.12 @ 12:30:52 End 2025.11.13 @ 19:59:22 Sessions 5 Manual Loads 0 Difficulty Rogue Special Mode None Game No. 263 Rogue 263 Adventurer 0 Explorer 0 Win Type - Total 49 Types 21/4/8/3/6/1/0/3/0/3 Lore% 96 Gallery% 89 Achievement% 77 Wizard Run 0 Options --------- Layout 1 ASCII 0 Keyboard 0 Movement Numpad Keybinds 0 Fullscreen 1 Font 24/Smallcaps Map View 50x35 Zoom Use 0% Tactical HUD 1 Map Filters NONE Filters NONE Steam 1 RUN: 0fe6fe88-e1d4-4340-bdb7-7580bd712f25